Cogmind - Beta 17 @@@ ROGUE MODE // 2026.08.10 @ 01:39:16 Player: Alicianrone Result: Destroyed 0b10! Performance ------------- Evolutions (9) 4500 Regions Visited (29) 5800 Robots Destroyed (773) 3865 Value Destroyed (45635) 45635 Prototype IDs (114) 2280 Alien Tech Used (13) 2600 Bonus (64319) 64319 TOTAL SCORE: 128999 Bonus ------- Triggered Max Security 2000 High Alert Combat Kills 19321 Follower Combat Kills 8977 Hunted by Unchained 500 Network Hubs Disabled 600 Delivered SUBCON Basin 2000 Registered with UFD 300 Met Optimus in HQ 500 Met Zhirov 300 Met Warlord at Base 500 MAIN.C Attacked Warlord 500 Warlord Defense Kills 6694 Built Enhanced Grunts 300 A7 Reached Mainframe 300 Met R17 at Cetus 500 Used Core Reset Matrix 3000 Hacked Protovariant 1000 Met R17 at Research 2000 Scanned by Researcher 500 Pursued by Intercept 500 Met Sigix 2000 Activated Exoskeleton 3000 Escaped with Exo-Sigix 10000 Win 3000 Friendly Fire -3973 Cogmind --------- Core Integrity 1534/1600 Matter 405/425 Energy 692/700 System Corruption 0% Temperature Cool (0) +ITN Movement Rolling (123) Ox4 Location Tau Ceti IV Orbit Parts ------- > --- POWER (2) -------- Vortex Chain Reactor > --- PROPULSION (6) --- Wheel Wheel Overtuned Huge Scrapsphere Overtuned Huge Scrapsphere (fused) > --- UTILITY (13) ----- Scrap Suit Experimental Cooling System Humpback Deep Structural Scanner Experimental Optical Array Long-range Sensor Array Experimental Targeting Computer Experimental Core Analyzer Experimental Focal Shield Thermal Barrier Experimental Force Field > --- WEAPON (5) ------- Perforator Omega Cannon Hellfire Missile Launcher > --- INVENTORY (35) --- Improved Quantum Reactor Improved Quantum Reactor Scrap Suit Humpback Humpback Experimental Energy Well (600) Experimental Matter Compressor (500) Seismic Detector Heavy Armor Plating Layered Heavy Armor Plating Heavy Regenerative Plating Experimental Hardlight Generator High-powered Tractor Beam Dimensional Node Initializer Transdimensional Reconstructor Linked Autogun Helical Railgun Helical Railgun Helical Railgun Multirail Perforator Vortex Catalyst Activator (9) Multitool Peak State ------------ > --- POWER ------------ Vortex Chain Reactor > --- PROPULSION ------- Improved Heavy Siege Treads Overtuned Huge Scrapsphere Overtuned Huge Scrapsphere > --- UTILITY ---------- Scrap Suit Humpback Experimental Optical Array Experimental Targeting Computer Experimental Core Analyzer Layered Heavy Armor Plating Experimental Focal Shield Thermal Barrier Experimental EM Shield Experimental Hardlight Generator > --- WEAPON ----------- Helical Railgun Perforator Omega Cannon > --- INVENTORY -------- Improved Quantum Reactor Improved Quantum Reactor Scrap Suit Experimental Cooling System Humpback Humpback Experimental Energy Well Experimental Matter Compressor Deep Structural Scanner Long-range Sensor Array Seismic Detector Heavy Armor Plating Heavy Insulated Plating Heavy Regenerative Plating Experimental Force Field High-powered Tractor Beam Dimensional Node Initializer Transdimensional Reconstructor Linked Autogun Helical Railgun Helical Railgun Perforator Hellfire Missile Launcher Vortex Catalyst Activator Multitool [Rating: 229] Favorites ----------- Power Meta Core Engine Light Ion Engine Power Core Meta Core Reactor Vortex Chain Reactor Propulsion Overtuned Huge Scrapsphere Treads Heavy Treads Wheel Overtuned Huge Scrapsphere Utility Scrap Suit Device Scrap Suit Storage Humpback Processor Tech Extrapolator Hackware Hacking Suite Protection Gun Armor Artifact Phase Armor Weapon Overtuned Coil Gun Energy Gun Subdweller Laser Energy Cannon EMDS Ballistic Gun Overtuned Coil Gun Ballistic Cannon Perforator Launcher Long-range Missile Launcher Special Weapon CPS Tube Impact Weapon Core Stripper Slashing Weapon Great Axe Piercing Weapon Plasma Lance Special Melee Weapon Advanced Datajack Build | -11 -10 -10 -9 -9 -6 -6 -6 -6 -6 -6 -6 -5 -5 -5 -5 -4 -4 -4 -4 -4 -4 -4 -3 -3 -3 -2 -2 -2 -1 ------- Run | Yrd Mat Sub Rec Scr Fac Was Fac Ext Cet Arc Hub Fac Upp Upp Zhi Pro Fac Was Fac Upp Upp War Pro Res Tes Res Qua Sec Acc Slots Evolved 18 | . . . . . 8 . . . . . . 2 . . . . 2 . . . . . . 2 . 2 . . 2 Power 1 | . . . . . . . . . . . . . . . . . . . . . . . . 1 . . . . . Propulsion 4 | . . . . . 2 . . . . . . . . . . . 2 . . . . . . . . . . . . Utility 10 | . . . . . 5 . . . . . . 1 . . . . . . . . . . . 1 . 1 . . 2 Weapon 3 | . . . . . 1 . . . . . . 1 . . . . . . . . . . . . . 1 . . . Parts Attached 348 | 8 12 21 3 11 14 11 9 6 7 10 21 10 2 11 3 3 15 4 9 7 1 16 3 17 20 7 60 21 6 Power 20 | 1 1 2 1 2 . . . . . . . . . 1 1 1 1 . 1 . . 1 . 2 3 . 2 . . Engine 6 | 1 1 2 1 1 . . . . . . . . . . . . . . . . . . . . . . . . . Core 1 | . . . . 1 . . . . . . . . . . . . . . . . . . . . . . . . . Reactor 13 | . . . . . . . . . . . . . . 1 1 1 1 . 1 . . 1 . 2 3 . 2 . . Propulsion 44 | 2 5 5 . 3 2 5 . . 2 . 3 2 . 1 . . 2 1 . . 1 1 1 2 1 . 2 . 3 Treads 21 | . 2 2 . . 1 3 . . 2 . 1 1 . . . . 1 1 . . 1 . 1 2 1 . 2 . . Leg . | . . . . . . . . . . . . . . . . . . . . . . . . . . . . . . Wheel 23 | 2 3 3 . 3 1 2 . . . . 2 1 . 1 . . 1 . . . . 1 . . . . . . 3 Hover . | . . . . . . . . . . . . . . . . . . . . . . . . . . . . . . Flight . | . . . . . . . . . . . . . . . . . . . . . . . . . . . . . . Utility 179 | 2 2 5 1 1 5 4 4 2 3 6 14 4 1 5 1 1 8 2 6 7 . 6 2 9 11 3 48 15 1 Device 94 | 1 . . . . 1 2 . 2 1 4 6 2 . 3 . . 2 2 3 4 . 3 2 6 9 . 31 10 . Storage 13 | 1 1 1 . . . 1 . . . . 1 1 . . . . 1 . . 1 . 1 . . 1 . 3 . . Processor 23 | . . . . . 1 . . . 1 . 2 . 1 1 . . 2 . 1 2 . 2 . 1 1 1 4 2 1 Hackware 13 | . . . 1 . 1 . 1 . . 2 . . . . . . 2 . 2 . . . . . . 2 2 . . Protection 35 | . 1 4 . 1 2 1 3 . 1 . 5 1 . 1 1 1 1 . . . . . . 2 . . 7 3 . Artifact 1 | . . . . . . . . . . . . . . . . . . . . . . . . . . . 1 . . Weapon 105 | 3 4 9 1 5 7 2 5 4 2 4 4 4 1 4 1 1 4 1 2 . . 8 . 4 5 4 8 6 2 Energy Gun 10 | . . 3 . . 1 . 1 . . . . 2 . . . . . . . . . 1 . . 1 . . 1 . Energy Cannon 15 | . . 3 . . 1 1 1 . . . 2 1 . 1 . . . . 1 . . 1 . . . . 2 1 . Ballistic Gun 46 | 3 . 1 1 1 5 1 1 2 1 3 2 1 . 2 . 1 2 1 . . . 4 . 2 4 3 1 2 2 Ballistic Cannon 10 | . 2 1 . . . . . 1 . . . . . . . . . . . . . . . . . . 4 2 . Launcher 7 | . 1 1 . . . . 1 . . . . . . 1 . . . . . . . 1 . 1 . 1 . . . Special Weapon 9 | . 1 . . 3 . . 1 . 1 . . . 1 . 1 . . . . . . 1 . . . . . . . Impact Weapon 1 | . . . . . . . . . . . . . . . . . . . . . . . . . . . 1 . . Slashing Weapon 2 | . . . . 1 . . . . . . . . . . . . 1 . . . . . . . . . . . . Piercing Weapon 1 | . . . . . . . . . . . . . . . . . . . . . . . . 1 . . . . . Special Melee Weapon 4 | . . . . . . . . 1 . 1 . . . . . . 1 . 1 . . . . . . . . . . Unidentified Prototypes 73 | . . . . . 1 . 1 . 2 1 5 2 . . 3 . . 1 . 1 . 6 . 5 10 2 24 7 2 Corrupted Parts 13 | . . . . . . . . . . 3 2 . . . . 3 . . . . . 3 . . 1 . 1 . . System Corruption 82 | . . . . . . . . . . 20 11 . . . . 18 . . . . . 21 . . 2 . 10 . . Parts Lost 52 | . 1 6 . . 8 . . 1 . . 10 . . 2 . . 2 . . . 2 8 . 2 2 1 2 4 1 Power 6 | . . 1 . . . . . . . . . . . 1 . . 1 . . . 1 1 . . . . 1 . . Propulsion 8 | . 1 1 . . 2 . . . . . 2 . . . . . . . . . 1 1 . . . . . . . Utility 13 | . . 1 . . 3 . . . . . 3 . . . . . . . . . . . . . 1 1 1 2 1 Weapon 25 | . . 3 . . 3 . . 1 . . 5 . . 1 . . 1 . . . . 6 . 2 1 . . 2 . Highest Loss Streak 6 | . 1 6 . . 5 . . 1 . . 3 . . 2 . . 1 . . . 2 3 . 2 1 1 1 2 1 To Critical Strikes 1 | . . . . . . . . . . . 1 . . . . . . . . . . . . . . . . . . Average Backups 23 | 2 12 6 12 21 18 24 27 25 25 25 24 28 28 27 27 28 27 29 29 29 28 27 25 26 26 25 25 24 23 Power 1 | . . . 1 . . 2 2 2 1 2 2 4 3 2 2 2 1 1 . 1 . . 2 1 1 1 1 1 2 Propulsion . | 1 3 1 . 1 . 1 1 1 . 1 . . 1 . 1 1 . . . . . . . . 1 1 . . . Utility 13 | . 6 1 5 12 8 10 14 15 15 14 12 14 15 15 15 16 15 17 17 17 16 16 17 16 17 16 17 14 12 Weapon 4 | . 2 2 2 2 5 6 5 4 5 5 6 5 4 4 4 4 4 6 5 5 5 5 1 2 3 4 3 5 6 Tool/Special . | . . . . . . . . . . . . . . . . . . . . . . . . . . . . . . Unused Backups 82 | . 1 11 . 9 . 4 10 1 5 2 2 4 2 2 1 . 1 . . 2 . 2 1 3 2 . 2 5 10 Power 12 | . . . . 1 . 3 . . 2 . . 2 . . . . . . . . . . . 1 . . 1 . 2 Propulsion 8 | . 1 1 . 1 . . . . . . . 1 1 . . . 1 . . . . . . . . . . 2 . Utility 44 | . . 5 . 6 . 1 8 1 2 2 1 1 . 2 1 . . . . 1 . 1 1 2 2 . 1 3 3 Weapon 14 | . . 5 . 1 . . 1 . 1 . 1 . 1 . . . . . . . . 1 . . . . . . 3 Tool/Special 4 | . . . . . . . 1 . . . . . . . . . . . . 1 . . . . . . . . 2 Average Slot Usage (%) 74 | . 99 91 100 86 76 68 77 76 76 73 71 77 74 73 69 69 71 73 72 68 68 68 67 72 73 72 63 60 67 Engine 2 | . 14 13 14 6 . . . . . . . . . . . . . . . . . . . . . . . . . Core 1 | . . . . 5 5 5 5 5 5 5 5 5 5 3 . . . . . . . . . . . . . . . Reactor 2 | . . . . . . . . . . . . . . 1 5 5 5 5 5 5 5 4 5 8 7 4 4 4 3 Treads 5 | . . 18 14 7 . 4 5 5 5 5 4 . 5 4 5 5 4 5 5 5 5 4 3 . 4 4 4 3 2 Wheel 10 | . 27 9 14 15 18 11 11 11 11 11 12 20 10 9 5 5 10 10 10 10 10 10 11 12 9 8 8 8 8 Device 9 | . 13 1 . . 9 5 5 5 5 8 6 15 9 9 10 10 9 7 13 14 15 13 11 13 13 12 11 17 23 Storage 5 | . 14 7 14 11 5 5 5 5 5 5 5 5 5 5 5 5 5 5 5 5 5 5 5 4 4 4 4 4 3 Processor 7 | . . . . . 4 5 5 5 7 8 9 6 9 10 11 11 14 15 11 10 10 10 10 9 14 12 9 2 10 Hackware 3 | . . . 13 11 10 11 11 11 8 6 3 . . . . . . . . . . . . . . 3 4 2 . Protection 3 | . . 11 . 5 4 . 4 4 5 1 3 3 5 4 4 5 . 2 . . . 1 3 3 . . . 1 1 Energy Cannon 4 | . . 17 14 5 2 1 4 . . . . 5 5 4 5 5 . . . 4 4 3 4 2 . . . 2 . Ballistic Gun 11 | . 24 1 13 8 11 14 15 11 16 16 15 16 19 17 8 5 18 21 17 10 10 12 10 8 13 20 10 4 1 Ballistic Cannon 1 | . 2 2 . . . . . 3 . . . . . . . . . . . . . . . . . . 3 5 6 Peak Build Rating 229 | 7 8 32 35 44 90 110 109 107 112 117 121 142 138 139 121 122 130 129 138 138 137 136 138 154 163 176 211 217 229 Average Rating 117 | 5 7 12 25 31 80 99 107 100 106 110 111 125 137 132 119 120 120 123 129 134 134 131 135 146 153 169 181 203 221 On Entrance 108 | . 7 8 32 20 39 77 106 107 100 112 117 105 142 138 119 120 119 124 127 133 136 131 117 137 148 155 169 204 213 Avg Prop Armor Cover (%) 8 | . 11 10 15 15 5 10 8 8 9 10 10 7 7 7 7 7 9 9 10 9 8 7 7 8 11 8 7 4 7 Naked Turns . | . . . . . . . . . . . . . . . . . . . . . . . . . . . . . . Heaviest Build 342 | 13 92 104 104 105 115 245 242 241 233 232 235 264 254 264 265 265 263 254 265 272 268 265 269 283 272 278 339 342 323 Greatest Support 76 | 20 32 40 16 24 52 70 28 28 28 28 48 54 28 40 20 20 56 40 40 40 40 60 60 60 40 40 40 50 76 Greatest Overweight (x) 13 | . 8 6 6 8 2 8 8 8 8 8 8 9 9 13 13 13 6 6 6 6 6 6 6 6 6 6 8 8 6 Average Overweight (x) 6 | . 2 2 6 5 2 7 8 8 8 7 7 4 8 9 12 12 5 6 6 6 6 5 5 4 6 6 6 7 5 Largest Inventory Capacity 35 | 8 25 25 25 25 25 35 35 35 35 35 35 35 35 35 35 35 35 35 35 35 35 35 35 35 35 35 35 35 35 Average Capacity 31 | 6 24 15 25 25 25 33 35 35 35 35 35 35 35 35 35 35 35 35 35 35 35 35 35 35 35 35 35 35 35 Most Carried 35 | 5 17 25 25 25 24 35 35 35 35 35 35 35 35 35 35 35 35 35 35 35 35 35 35 35 35 35 35 35 35 Average Carried 29 | 2 12 7 19 23 20 29 34 34 34 34 29 33 34 34 34 35 33 34 34 34 34 34 34 34 34 33 33 34 32 Final Capacity 35 | 8 25 25 25 25 25 35 35 35 35 35 35 35 35 35 35 35 35 35 35 35 35 35 35 35 35 35 35 35 35 Final Carried 35 | 5 16 25 19 25 21 35 35 35 35 35 32 35 35 33 35 35 34 35 34 35 35 34 35 35 34 35 35 34 32 Scrap Suit Usage (%) 14 | . . . . . 41 58 . 39 36 81 23 . 62 36 . 1 16 4 6 5 . 14 7 27 15 17 4 26 11 Parts Cannibalized 131 | . . . . . 1 . . 3 . . . . 8 1 . . 1 4 5 5 . 5 4 10 25 10 26 21 2 Class Distribution -------------------- 51% | Hauler-Scrapper 12% | Mutant 9% | Scavenger-Scrapper 6% | Alien-Tank 5% | Hauler-Executioner 4% | Subdweller-Mutant 3% | Derelict-Mutant Dominant Class ---------------- Mutant | -10/Materials Subdweller-Mutant | -10/Subcaves Mutant | -9/Recycling Mutant | -9/Scraptown Hacker-Scrapper | -6/Factory Hauler-Scrapper | -6/Waste Hauler-Scrapper | -6/Factory Hauler-Scrapper | -6/Extension Hauler-Scrapper | -6/Cetus Hauler-Scrapper | -6/Archives Hauler-Scrapper | -6/Hub_04(d) Hauler-Executioner | -5/Factory Hauler-Executioner | -5/Upper Caves Hauler-Scrapper | -5/Upper Caves Hauler-Scrapper | -5/Zhirov Hauler-Scrapper | -4/Proximity Caves Hauler-Scrapper | -4/Factory Scavenger-Scrapper | -4/Waste Hauler-Scrapper | -4/Factory Hauler-Scrapper | -4/Upper Caves Hauler-Scrapper | -4/Upper Caves Hauler-Scrapper | -4/Warlord Scavenger-Scrapper | -3/Proximity Caves Scavenger-Scrapper | -3/Research Hauler-Scrapper | -3/Testing Hauler-Scrapper | -2/Research Hauler-Scrapper | -2/Quarantine Alien-Tank | -2/Section 7 Alien-Tank | -1/Access Resources | -11 -10 -10 -9 -9 -6 -6 -6 -6 -6 -6 -6 -5 -5 -5 -5 -4 -4 -4 -4 -4 -4 -4 -3 -3 -3 -2 -2 -2 -1 ----------- Run | Yrd Mat Sub Rec Scr Fac Was Fac Ext Cet Arc Hub Fac Upp Upp Zhi Pro Fac Was Fac Upp Upp War Pro Res Tes Res Qua Sec Acc Matter Collected 37022 | 304 383 814 206 290 530 799 723 861 227 635 1296 717 364 849 97 120 1273 570 2187 526 54 1912 314 1510 2352 797 3109 6518 6685 Remotely 12835 | . . . . . . . . . . . . 223 . 113 . . 918 . 1148 . . 979 . . 529 295 . 4953 3677 Salvage Created 51663 | 95 342 676 57 113 1948 1251 720 1435 120 635 2137 816 526 1099 330 251 1813 859 3026 176 78 1912 153 1518 2533 1381 1422 10431 13810 Parts 1791 | 6 26 48 3 12 68 31 37 53 6 56 116 24 17 23 6 13 73 9 119 5 2 72 6 44 118 86 77 208 427 Haulers Intercepted 20 | . 2 . . . 3 . 2 . . . . 2 . . . . 2 . 3 . . . . 2 2 1 . . 1 Recyclers Shooed 15 | . 1 . . . 1 . 1 2 . . . 3 . . . . 1 . 3 . . . . . . 1 . . 2 Parts Field Recycled . | . . . . . . . . . . . . . . . . . . . . . . . . . . . . . . Retrieved Matter . | . . . . . . . . . . . . . . . . . . . . . . . . . . . . . . Parts Self-Destructed 60 | . . 15 . 5 . . . . . . . . 4 11 3 10 . . . 11 1 . . . . . . . . Prevented 33 | . . . . . . . . . . . . . 7 8 . . . . . 11 1 . 6 . . . . . . Parts Restored . | . . . . . . . . . . . . . . . . . . . . . . . . . . . . . . Kills | -11 -10 -10 -9 -9 -6 -6 -6 -6 -6 -6 -6 -5 -5 -5 -5 -4 -4 -4 -4 -4 -4 -4 -3 -3 -3 -2 -2 -2 -1 ------- Run | Yrd Mat Sub Rec Scr Fac Was Fac Ext Cet Arc Hub Fac Upp Upp Zhi Pro Fac Was Fac Upp Upp War Pro Res Tes Res Qua Sec Acc Combat Hostiles Destroyed 609 | . 11 26 1 . 29 3 5 22 1 2 28 8 4 16 . 7 19 . 26 3 1 48 2 17 26 12 17 124 151 Melee 4 | . . . . . 3 . . . . . . . . . . . . . . . . . . . 1 . . . . Guns 175 | . 5 4 . . 11 3 5 8 1 2 23 . . 3 . 2 19 . 23 . . 21 . 4 25 12 . 3 1 Cannons 318 | . . 11 1 . 1 . . 8 . . 4 3 4 1 . 1 . . . 2 . 2 1 3 . . 16 110 150 AOE 88 | . 6 10 . . 13 . . 6 . . 1 4 . 9 . 4 . . 3 . 1 22 . 5 . . . 4 . Classes Destroyed 32 | 2 6 4 . . 4 3 2 2 . . 1 . . 1 . . 1 . . . . 3 . . 1 . 1 1 . Worker 30 | . 1 . . . 7 . . . . . 8 2 . . . . 2 . 5 . . . . . . . . . 5 Builder 19 | . . . . . 2 . 1 2 . . . 2 . . . . . . . . . . . . 1 . . 2 9 Tunneler 3 | 1 . . . . 1 . . . . . . . . . . . . . . . . . . . . . . . 1 Hauler 20 | . 2 . . . 3 . 2 . . . . 2 . . . . 2 . 3 . . . . 2 2 1 . . 1 Recycler 28 | 1 . . . . 2 . . 3 . . . 1 . . . . 2 . 9 . . . . 1 2 1 . 2 4 Mechanic 22 | . . . . . . . . . . . . 1 . . . . 1 . . . . 1 . . . . . 10 9 Operator 21 | . 1 . . . . . 1 2 . 9 . 1 . . . . 1 . 1 . . . . 2 1 1 . 1 . Drone 2 | . . . . . . . . . . . . . . . . . . . . . . . . . . . . 2 . Turret 2 | . . 2 . . . . . . . . . . . . . . . . . . . . . . . . . . . Watcher 19 | . 2 . . . 2 . . 1 1 . . 3 . . . . 1 . 2 . . . . 2 1 1 . 2 1 Swarmer 54 | . 9 7 . . . . . 4 . . . . . 5 . 5 2 . 4 1 . 2 . 5 . . . 4 6 Saboteur 13 | . . . . . . . . . . . . . . . . . . . . . . 6 . . . . . 4 3 Grunt 227 | . 2 3 . . 24 . . 11 . . 13 7 2 8 . . 3 . 3 1 . 17 . 1 9 1 1 46 75 Brawler 36 | . . . . . . . . . . . . . . . . . 1 . 1 . . 3 . . 1 . . 11 19 Duelist 19 | . . . . . 2 . 2 . . . . . . . . . . . . . . 2 . . 1 . . 5 7 Protector 18 | . . . . . . . . 1 . . 2 . . . . . . . . . . 2 . . . . . 5 8 Researcher 2 | . . . . . . . . . . . . . . . . . . . . . . . . . 2 . . . . Sentry 39 | . . 1 1 . 1 . 2 4 . 2 1 . . 2 . . 3 . 1 . . . . 3 . 5 . 2 11 Demolisher 2 | . . . . . . . . . . . . . . . . . . . . . . . . 2 . . . . . Specialist 7 | . . . . . . . 1 . . . 1 . . . . . . . 2 . . 3 . . . . . . . Hunter 42 | . . . . . 1 . . . . . 3 1 2 . . . 2 . 4 1 . 3 2 4 2 2 3 7 5 Programmer 68 | . . . . . 1 . . . . . 1 . . . . 2 7 . 11 . . . . . 13 4 . 24 5 Heavy 2 | . . . . . . . . . . . 1 . . . . . . . . . . . . . . . . . 1 Behemoth 5 | . . . . . . . . 1 . . . . . . . . 1 . . . 1 1 . . . . . 1 . Compactor 3 | . . . . . . 3 . . . . . . . . . . . . . . . . . . . . . . . Cetus Guard 1 | . . . . . . . . . 1 . . . . . . . . . . . . . . . . . . . . Quarantine Guard 9 | . . . . . . . . . . . . . . . . . . . . . . . . . . . 9 . . S7 Guard 1 | . . . . . . . . . . . . . . . . . . . . . . . . . . . . 1 . Enhanced Grunt 1 | . . . . . . . . . . 1 . . . . . . . . . . . . . . . . . . . Lightning 9 | . . . . . . . . . . . 6 . . . . . . . . . . . . . . . 3 . . Tracker 1 | . . . . . . . . . . . . . . . . . . . . . . . . . . . . 1 . Investigator 3 | . . . . . . . . . . . . . . . . . . . . . . . . . . . . 1 2 Striker 14 | . . . . . . . . . . . . . . . . . . . . . . 3 . 2 . . . 4 5 Executioner 21 | . . . . . . . . . . . . . . . . . . . . . . 6 . . . . . 9 6 Fortress 1 | . . . . . . . . . . . . . . . . . . . . . . . . . . . 1 . . Artisan 1 | . . 1 . . . . . . . . . . . . . . . . . . . . . . . . . . . Subdweller 15 | . . 15 . . . . . . . . . . . . . . . . . . . . . . . . . . . Scrapoid 4 | . . . . . . 2 1 . . . . . 1 . . . . . . . . . . . . . . . . Decomposer 2 | . . . . . . . . . . . . . 2 . . . . . . . . . . . . . . . . Packrat 8 | . . . . . . . . . . . . . 2 5 . 1 . . . . . . . . . . . . . Surgeon 2 | . . . . . . . 2 . . . . . . . . . . . . . . . . . . . . . . Thug 1 | . . . . . . . . 1 . . . . . . . . . . . . . . . . . . . . . Martyr 2 | . . . . . . 2 . . . . . . . . . . . . . . . . . . . . . . . Mutant 1 | . . . . . . . . . . . . . . 1 . . . . . . . . . . . . . . . Best Kill Streak 46 | 2 3 6 1 . 14 2 3 5 1 4 8 10 2 5 . 5 5 . 9 2 1 19 2 5 6 6 3 46 41 Combat Bots Only 40 | . 3 5 1 . 12 2 2 5 1 1 5 4 2 5 . 5 4 . 6 2 1 19 2 5 5 6 3 40 24 Max Kills in Single Turn 7 | 1 3 2 1 . 7 1 3 5 1 1 3 3 1 5 . 3 2 . 3 1 1 7 1 5 2 2 1 6 5 Gunslinging 1 | . . . . . . . . . . . . . . . . . . . 1 . . 1 . . . . . . . Exploded 7 | . 3 2 . . 7 . . 4 . . 1 3 . 5 . 3 . . 2 . 1 7 . 5 . . . 4 . Melee 1 | . . . . . 1 . . . . . . . . . . . . . . . . . . . 1 . . . . Uniques/NPCs Destroyed 1 | . . . . . . . . . . 1 . . . . . . . . . . . . . . . . . . . A7 (-6/Archives) Combat | -11 -10 -10 -9 -9 -6 -6 -6 -6 -6 -6 -6 -5 -5 -5 -5 -4 -4 -4 -4 -4 -4 -4 -3 -3 -3 -2 -2 -2 -1 -------- Run | Yrd Mat Sub Rec Scr Fac Was Fac Ext Cet Arc Hub Fac Upp Upp Zhi Pro Fac Was Fac Upp Upp War Pro Res Tes Res Qua Sec Acc Hostile Shots Fired 2645 | . 30 93 . . 152 . 34 110 9 6 330 29 1 70 . 11 128 . 143 19 27 320 26 69 200 124 39 375 300 Missed 658 | . 7 26 . . 48 . 5 28 3 2 49 10 . 21 . . 33 . 40 7 2 105 8 27 43 25 12 75 82 Hits 1987 | . 23 67 . . 104 . 29 82 6 4 281 19 1 49 . 11 95 . 103 12 25 215 18 42 157 99 27 300 218 Melee 24 | . . . . . 6 . 1 . . . . . . . . . . . 1 . . 4 . 4 . . . 1 7 Projectile 1963 | . 23 67 . . 98 . 28 82 6 4 281 19 1 49 . 11 95 . 102 12 25 211 18 38 157 99 27 299 211 AOE 12 | . . . . . . . . . . . 1 . . . . . 2 . . . . 1 . 6 . . . 1 1 Critical Strikes 101 | . . . . . 3 . . 6 3 1 22 2 . 1 . 1 3 . 7 1 . 8 . 2 9 4 1 10 17 Part Disruptions 7 | . . . . . . . . . . . . . . 1 . . . . 2 . . . . . 4 . . . . Damage Taken 29008 | . 224 1333 . . 2284 . 581 1182 390 94 5886 326 19 926 . 88 1741 . 1207 175 728 3212 231 1261 1422 1355 881 2295 1167 Core 2185 | . 45 189 . . 175 . 6 99 50 . 362 56 . 44 . 34 132 . 79 . 65 323 . 168 103 95 14 80 66 Absorbed by Shields 6349 | . . . . . . . . 89 . . . . . . . . . . 131 31 44 680 . 96 418 610 30 2184 2036 Reduced by Siege Mode 1069 | . . . . . . . . 39 24 . 270 . . 58 . 2 30 . 96 . 103 134 . . 53 52 22 168 18 Ignored by Resistances 11256 | . . . . . . . . . . . 2022 62 . . . 125 290 . 603 . . 927 91 51 1352 361 44 2892 2436 Regen/Repaired (Parts) 6473 | . . . . . 10 61 15 30 . . . . 40 10 . 4 799 274 626 38 . 158 183 907 278 118 1062 1840 20 Core Remaining (%) 61 | 100 . . . 6 . . . . . . 18 . . . . 86 . . . . . . 47 . 70 . . 72 95 Volleys Fired 1587 | 4 45 116 1 4 67 28 30 66 14 37 93 46 33 59 30 9 57 10 85 14 6 70 13 77 96 38 46 207 186 Largest 5 | 2 2 2 2 1 3 3 4 3 3 3 3 4 1 4 1 2 4 4 4 1 2 4 1 2 4 5 2 3 2 Hottest 176 | 40 100 160 160 . 115 110 175 129 90 90 105 108 70 125 20 70 134 129 134 70 64 134 70 80 138 176 160 140 130 Shots Fired 3004 | 8 83 196 2 4 95 66 67 113 40 110 231 60 35 100 30 14 189 40 301 16 9 193 13 98 258 145 51 242 195 Gun 2196 | 8 76 59 . . 67 56 53 63 39 110 224 28 16 81 . 10 187 40 297 1 9 166 5 58 258 145 23 103 14 Cannon 700 | . . 125 2 . 21 10 12 45 . . 7 28 17 11 . 2 2 . 2 15 . 12 8 39 . . 27 138 177 Launcher 69 | . 5 12 . . 7 . 2 5 . . . 4 . 8 . 2 . . 2 . . 15 . 1 . . 1 1 4 Special 39 | . 2 . . 4 . . . . 1 . . . 2 . 30 . . . . . . . . . . . . . . Kinetic 2550 | 8 76 67 . . 69 56 53 103 39 110 224 32 16 81 . 10 187 40 297 1 9 166 5 58 258 145 48 201 191 Thermal 155 | . 2 121 2 . . . . . . . . . . . 30 . . . . . . . . . . . . . . Explosive 53 | . 5 8 . . . . 2 5 . . . . . 8 . 2 . . 2 . . 14 . 1 . . 1 1 4 Electromagnetic 238 | . . . . . 26 10 12 5 . . 7 28 17 11 . 2 2 . 2 15 . 12 8 39 . . 2 40 . Entropic 1 | . . . . . . . . . . . . . . . . . . . . . . 1 . . . . . . . Robot Hit Streak 52 | 6 12 30 3 4 11 7 9 8 14 12 12 7 6 14 33 45 52 17 18 4 6 26 2 6 36 30 12 36 27 Robot Miss Streak 16 | 1 5 2 . 2 2 2 3 4 1 6 5 2 3 2 . . 4 2 4 5 2 5 2 3 4 2 7 16 10 Penetration Max 3 | . . . . . 1 . 1 1 . . 1 1 1 1 . 1 1 . 1 1 . 2 . . 2 1 2 3 3 Secondary Targets 38 | . . . . . 2 . . 1 . 1 9 . . . . . 1 . 6 . . 6 . . 8 4 . . . Max Gunslinging Chain 1 | . . . . . 1 . . 1 . 1 1 . . . . . 1 . 1 . . 1 . . 1 1 . . . Shots Hit Robots 2052 | 6 39 81 1 6 81 48 39 71 36 75 154 31 23 60 30 12 117 32 196 6 10 153 4 51 186 109 18 205 172 Core Hits 1887 | 3 23 47 1 2 73 9 22 56 13 33 73 28 8 33 10 9 62 4 89 2 3 129 2 29 75 47 34 446 522 Critical Kills 331 | . . 2 . . . 2 . 10 . 1 10 . . 1 . . 7 1 2 . . 1 . 2 6 3 16 107 160 Critical Parts Destroyed 431 | . . . . . 3 . 2 13 1 . 9 . . 2 . 2 6 . 15 . . 3 . . 11 6 19 165 174 Critical Strikes 859 | . . 4 . . 5 4 2 25 1 1 21 3 1 7 1 2 14 2 17 2 1 12 2 7 20 10 39 292 364 Meltdown 1 | . . 1 . . . . . . . . . . . . . . . . . . . . . . . . . . . Destroy 814 | . . 1 . . 3 4 2 25 1 1 19 . . 3 . 2 14 2 17 . 1 7 . 2 18 10 39 284 359 Blast 8 | . . 2 . . . . . . . . . . . . . . . . . . . . . . . . . 1 5 Corrupt 32 | . . . . . 1 . . . . . 2 3 1 4 . . . . . 2 . 5 2 5 . . . 7 . Sever 2 | . . . . . 1 . . . . . . . . . 1 . . . . . . . . . . . . . . Impale 2 | . . . . . . . . . . . . . . . . . . . . . . . . . 2 . . . . Melee Attacks 64 | . . . . 4 11 . . 1 . 1 . . . . . . 5 . 10 . 6 . . 3 20 . 3 . . Kinetic 3 | . . . . . . . . . . . . . . . . . . . . . . . . . . . 3 . . Impact . | . . . . . . . . . . . . . . . . . . . . . . . . . . . . . . Slashing 26 | . . . . 4 11 . . . . . . . . . . . 1 . 10 . . . . . . . . . . Piercing 32 | . . . . . . . . . . . . . . . . . 4 . . . 5 . . 3 20 . . . . Sneak Attacks 12 | . . . . . . . . 1 . 1 . . . . . . . . 2 . 2 . . . 6 . . . . Combat Hostiles 1 | . . . . . . . . . . . . . . . . . . . . . . . . . 1 . . . . Follow-up Attacks . | . . . . . . . . . . . . . . . . . . . . . . . . . . . . . . Damage Inflicted 82425 | 78 832 2457 30 304 5970 1285 1835 3199 812 1810 4640 2661 956 2711 405 872 3622 850 7154 519 157 11464 215 2688 7123 3014 346 7968 6448 Guns 41698 | 78 524 431 . . 1532 1035 907 1127 812 1810 3983 283 198 1057 . 364 3409 850 5868 26 145 4235 . 753 6466 3014 . 2365 426 Cannons 20186 | . . 1152 30 . 484 250 256 822 . . 366 1218 711 590 . 103 119 . . 493 . 676 215 1549 . . 263 4867 6022 Explosions 18459 | . 308 874 . . 3573 . 672 1250 . . 234 1160 47 1064 . 405 86 . 1111 . . 6553 . 386 . . . 736 . Melee 1620 | . . . . 304 381 . . . . . . . . . . . 8 . 175 . 12 . . . 657 . 83 . . Ramming 57 | . . . . . . . . . . . 57 . . . . . . . . . . . . . . . . . . Kinetic 55079 | 78 524 1187 . . 2761 1035 907 1810 812 1810 3983 1443 198 1057 . 364 3409 850 5868 26 145 4235 . 753 6466 3014 346 5550 6448 Thermal 4379 | . . 729 30 . 2071 . 507 . . . 234 . 47 . 405 . . . 356 . . . . . . . . . . Explosive 10776 | . 308 541 . . 199 . 165 1250 . . . . . 1064 . 405 86 . 755 . . 4881 . 386 . . . 736 . Electromagnetic 8925 | . . . . . 558 250 256 139 . . 366 1218 711 590 . 103 119 . . 493 . 676 215 1549 . . . 1682 . Impact . | . . . . . . . . . . . . . . . . . . . . . . . . . . . . . . Slashing 860 | . . . . 304 381 . . . . . . . . . . . . . 175 . . . . . . . . . . Piercing 677 | . . . . . . . . . . . . . . . . . 8 . . . 12 . . . 657 . . . . Entropic 1672 | . . . . . . . . . . . . . . . . . . . . . . 1672 . . . . . . . Highest Corruption 53 | . . . . . 3 3 5 5 5 15 53 2 2 3 . 18 1 1 6 6 . 17 17 . 5 3 10 14 . Average Corruption 6 | . . . . . 1 3 3 5 5 6 28 1 2 2 . 16 1 1 3 5 . 8 17 . 2 2 7 13 . Corruption Purged 38 | . . . . . . . . . . 19 . . . 3 . . . . . 6 . . . . 5 . 5 . . Corruption Blocked . | . . . . . . . . . . . . . . . . . . . . . . . . . . . . . . Effects 499 | . . . . . 8 23 33 36 7 17 58 6 21 17 . . 4 7 30 20 . 4 20 . 14 6 48 120 . Message Errors 119 | . . . . . . 6 10 7 1 6 9 2 3 4 . . 2 4 7 7 . 2 5 . 6 2 12 24 . Matter Fused 111 | . . . . . 6 5 5 12 2 4 10 2 6 4 . . . . 7 3 . 1 7 . 3 . 10 24 . Heat Flow Errors 66 | . . . . . 2 2 3 4 1 2 4 1 6 1 . . 1 1 7 4 . . 3 . 2 1 4 17 . Energy Discharges 63 | . . . . . . 3 5 5 1 1 5 . 2 4 . . . . 5 3 . 1 . . 1 . 10 17 . Parts Rejected 2 | . . . . . . . . 1 . . . . . . . . . . . . . . . . . . . 1 . Parts Fused 8 | . . . . . . 1 1 . . 1 1 . 1 . . . . . . . . . . . . . . 3 . Data Loss (minor) 43 | . . . . . . 2 4 2 1 . 4 . 1 3 . . . 2 1 1 . . 1 . 2 . 5 14 . Data Loss (major) 26 | . . . . . . 1 1 1 . 1 3 1 . . . . 1 . 1 . . . 4 . . . 3 9 . Misfires 18 | . . . . . . 1 1 1 . 1 2 . 2 1 . . . . 2 2 . . . . . . 4 1 . Alerts 11 | . . . . . . 1 3 2 1 1 1 . . . . . . . . . . . . . . . . 2 . Misdirections 1 | . . . . . . . . . . . 1 . . . . . . . . . . . . . . . . . . Weapon Failures 31 | . . . . . . 1 . 1 . . 18 . . . . . . . . . . . . . . 3 . 8 . Overload Shots . | . . . . . . . . . . . . . . . . . . . . . . . . . . . . . . Overflow Damage 1738 | . 2 10 . 29 446 . 127 54 . . 3 77 160 2 31 62 37 . 191 20 . 108 . 89 21 . 4 78 187 Projectiles 668 | . . . . . 29 . 5 16 . . . 59 135 . 31 . 37 . . 20 . 1 . 66 . . 4 78 187 Explosions 983 | . 2 10 . . 417 . 122 38 . . 3 18 25 2 . 62 . . 154 . . 107 . 23 . . . . . Melee 87 | . . . . 29 . . . . . . . . . . . . . . 37 . . . . . 21 . . . . Knockbacks 158 | . . 5 . . . . . 11 . . . . . . . . . . . . . . . . . . 5 64 73 Impact . | . . . . . . . . . . . . . . . . . . . . . . . . . . . . . . Kinetic 152 | . . 5 . . . . . 10 . . . . . . . . . . . . . . . . . . 5 61 71 Secondary 6 | . . . . . . . . 1 . . . . . . . . . . . . . . . . . . . 3 2 Self-Inflicted Damage 1099 | . 32 23 . . 450 . 216 . . . 28 . . 32 . . . . 191 . . 46 . . 20 . . 61 . Shots 20 | . 1 1 . . 7 . 3 . . . . . . 2 . . . . 3 . . 1 . . 1 . . 1 . Rammed 3 | . . . . . . . . . . . 3 . . . . . . . . . . . . . . . . . . Targets Rammed 3 | . . . . . . . . . . . 3 . . . . . . . . . . . . . . . . . . Kicked . | . . . . . . . . . . . . . . . . . . . . . . . . . . . . . . Crushed . | . . . . . . . . . . . . . . . . . . . . . . . . . . . . . . Highest Temperature 602 | . 40 228 99 . 213 250 262 361 138 235 420 234 256 225 . . 85 52 357 185 . 236 248 385 602 55 249 219 253 Average Temperature 65 | . 22 48 56 . 54 62 84 76 37 37 128 94 74 55 . . 26 52 61 89 . 62 106 36 65 7 77 45 80 Received Heat Transfer 4178 | . 6 330 . . 576 . 54 648 18 36 762 111 9 246 . . 240 . 129 . 42 238 . 103 243 92 45 167 83 Thermoelectric Energy+ 44 | . . . . . . . . . . . . . . . . . . . . . . . . . . . . . 44 Effects 11 | . . . . . . . . . . . 1 . . . . . . . . . . . . 2 6 . . . 2 Shutdowns 2 | . . . . . . . . . . . . . . . . . . . . . . . . . 2 . . . . Energy Bleed 1 | . . . . . . . . . . . . . . . . . . . . . . . . . . . . . 1 Interference 3 | . . . . . . . . . . . . . . . . . . . . . . . . 2 . . . . 1 Matter Decay 1 | . . . . . . . . . . . 1 . . . . . . . . . . . . . . . . . . Damage (minor) 1 | . . . . . . . . . . . . . . . . . . . . . . . . . 1 . . . . Damage (major) 3 | . . . . . . . . . . . . . . . . . . . . . . . . . 3 . . . . Siege Activations 64 | . . . . . . . . 4 1 1 5 . . 5 . 2 3 . 6 . 1 5 1 . 4 2 2 15 7 Total Turns 1798 | . . . . . . . . 54 22 38 276 . . 85 . 14 67 . 114 . 29 114 11 . 108 54 64 587 161 Longest Duration 157 | . . . . . . . . 19 22 38 157 . . 22 . 8 33 . 39 . 29 42 11 . 37 33 47 144 42 Martial Activations . | . . . . . . . . . . . . . . . . . . . . . . . . . . . . . . Shielding Activations . | . . . . . . . . . . . . . . . . . . . . . . . . . . . . . . Robots Disrupted . | . . . . . . . . . . . . . . . . . . . . . . . . . . . . . . Combat Hostiles . | . . . . . . . . . . . . . . . . . . . . . . . . . . . . . . Robots Corrupted 29 | . . . . . 2 2 1 . . . . 3 1 3 . . . . . 1 . 3 1 5 . . . 7 . Combat Hostiles 22 | . . . . . 1 . . . . . . 1 . 3 . . . . . 1 . 3 1 5 . . . 7 . Parts Fried 91 | . . . . . 6 3 2 3 1 . 5 17 7 6 . . . . . 1 . 8 3 11 . . . 18 . Impact Corruptions . | . . . . . . . . . . . . . . . . . . . . . . . . . . . . . . Robots Melted 1 | . . 1 . . . . . . . . . . . . . . . . . . . . . . . . . . . Combat Hostiles 1 | . . 1 . . . . . . . . . . . . . . . . . . . . . . . . . . . Parts Melted 12 | . . 1 . . 1 . . . . . . . . . . . . . . 1 . . . . . . . 1 8 Heat Transferred 4238 | . . 917 37 . 1350 . 324 . . . 250 . 50 . 1110 . . . 200 . . . . . . . . . . Parts Sabotaged . | . . . . . . . . . . . . . . . . . . . . . . . . . . . . . . Parts Stolen . | . . . . . . . . . . . . . . . . . . . . . . . . . . . . . . Parts Stripped 17 | . . . . . . . . . . . . . . . . . . . . . . . . . . . 17 . . Power Chain Reactions 3 | . . . . . . . 1 . . . 1 . 1 . . . . . . . . . . . . . . . . Alert | -11 -10 -10 -9 -9 -6 -6 -6 -6 -6 -6 -6 -5 -5 -5 -5 -4 -4 -4 -4 -4 -4 -4 -3 -3 -3 -2 -2 -2 -1 ------- Run | Yrd Mat Sub Rec Scr Fac Was Fac Ext Cet Arc Hub Fac Upp Upp Zhi Pro Fac Was Fac Upp Upp War Pro Res Tes Res Qua Sec Acc Maximum Alert Level 5 | . . . . . 3 1 2 5 3 2 3 4 . . . . 2 . 4 . . . . 1 2 2 1 5 5 Low Security (%) 41 | 100 100 . 100 . 24 69 18 1 . . 11 . . . . . 40 100 29 . . . . 46 56 . 77 9 . Level 1 23 | . . . . . 10 30 31 18 . 37 5 39 . . . . 49 . 26 . . . . 53 32 93 22 9 . Level 2 10 | . . . . . 10 . 49 32 . 62 52 22 . . . . 9 . 10 . . . . . 10 6 . 5 . Level 3 11 | . . . . . 54 . . 26 100 . 30 16 . . . . . . 34 . . . . . . . . 32 . Level 4 2 | . . . . . . . . 18 . . . 21 . . . . . . . . . . . . . . . 4 . Level 5 . | . . . . . . . . 1 . . . . . . . . . . . . . . . . . . . . . High Security . | . . . . . . . . . . . . . . . . . . . . . . . . . . . . . . Max Security 9 | . . . . . . . . . . . . . . . . . . . . . . . . . . . . 37 99 Sterilizations 2 | . . . . . . . . . . . . . . . . . . . . . . . . . . . . 1 1 Peak Influence 10547 | 10 99 . 127 . 1088 368 536 1633 972 505 826 1147 . . . . 476 160 1105 . . . . 361 556 415 390 4910 10547 Initial 2945 | . . . 81 . . 368 . 233 912 355 104 390 . . . . . 160 . . . . . 2 182 308 225 147 2945 Average 964 | 2 36 . 20 . 567 134 347 749 914 419 597 645 . . . . 231 29 477 . . . . 190 216 300 180 1807 8466 Influence Increases 29328 | 10 415 355 76 5 1407 8 1212 2184 330 297 1256 1285 156 380 15 165 1000 12 1520 215 24 1064 50 939 1010 430 977 4919 7612 Destroy 0b10 Robot/C 15140 | . 220 260 20 . 580 . 540 960 160 80 640 480 100 340 . 140 380 . 540 140 20 940 40 420 540 240 340 3080 3940 Destroy 0b10 Robot/NC 1155 | 10 30 . . 5 85 . 35 85 10 45 60 70 . . 15 5 45 . 100 . . 15 . 45 35 20 . 130 310 Destroy Leader 2394 | . 48 20 . . 120 . 146 116 . . 142 92 20 20 . 20 96 . 130 20 . . 10 98 86 84 120 466 540 Allied During Kill 3741 | . . . . . . . 325 834 143 125 155 182 36 20 . . . . 25 55 4 4 . 52 . . . 630 1151 Trap Triggered on 0b10 90 | . . . . . . . . . . . . . . . . . . . 20 . . . . . . . 70 . . Successful Hack 725 | . 22 . 25 . 65 . 20 38 6 . . 81 . . . . 110 . 55 . . . . 57 60 26 54 106 . Select Force Hacks 110 | . 30 . 30 . . . . . . . 50 . . . . . . . . . . . . . . . . . . Disable Machine 1845 | . 30 . . . 315 . 90 45 . 45 135 165 . . . . 165 . 270 . . . . 90 75 . 120 195 105 Anti-Garrison Action 300 | . . . . . . . . . . . . . . . . . . . . . . . . . . . 150 . 150 Destroy Structure 3123 | . 20 . 1 . 212 8 56 76 11 2 59 110 . . . . 204 12 350 . . . . 162 184 60 108 222 1266 Partial Spotted 15 | . . . . . . . . . . . 15 . . . . . . . . . . . . . . . . . . Lose Combat Pursuer 690 | . 15 75 . . 30 . . 30 . . . 105 . . . . . . 30 . . 105 . 15 30 . 15 90 150 Influence Decreases 19245 | 10 388 213 245 5 354 1061 734 1033 1071 887 756 982 979 519 154 165 542 470 415 1010 334 270 840 618 787 576 1117 735 1975 Entered New Map 7687 | . . 14 88 . . 685 . 245 717 533 194 408 408 53 139 . . 298 . 410 59 . 794 2 143 240 177 115 1965 Time Decay 9755 | 10 378 199 157 5 274 336 424 538 214 334 362 474 571 403 15 165 532 172 415 530 265 140 46 496 624 326 770 580 . Lost Part 410 | . 10 . . . 80 . . 10 . . 100 . . . . . 10 . . . 10 70 . 20 20 10 20 40 10 Lost Ally 1093 | . . . . . . 40 160 240 140 20 100 100 . 63 . . . . . 70 . 60 . 100 . . . . . Purge Threat 300 | . . . . . . . 150 . . . . . . . . . . . . . . . . . . . 150 . . Squads Dispatched 181 | . 2 . . . 13 . 8 7 . . 11 10 . . . . 8 . 12 . . . . 8 17 5 4 40 36 Investigation 26 | . 1 . . . 5 . 4 1 . . 2 3 . . . . 1 . 3 . . . . 3 1 . 2 . . Extermination 24 | . . . . . 1 . 1 . . . 1 2 . . . . 3 . 5 . . . . . 5 1 . 5 . Reinforcement 47 | . 1 . . . 6 . 3 4 . . 8 1 . . . . 1 . 3 . . . . 5 8 2 . 2 3 Assault 78 | . . . . . 1 . . 2 . . . 4 . . . . 1 . 1 . . . . . 3 . 2 32 32 Garrison 5 | . . . . . . . . . . . . . . . . . 2 . . . . . . . . 2 . . 1 Intercept 1 | . . . . . . . . . . . . . . . . . . . . . . . . . . . . 1 . Searches Triggered . | . . . . . . . . . . . . . . . . . . . . . . . . . . . . . . Construction Impeded 15 | . . . . . 2 . 1 1 . . 3 1 . . . . . . 2 . . . . . 1 . . 1 3 Haulers Reinforced 4 | . . . . . 3 . . . . . . . . . . . . . . . . . . 1 . . . . . Active Scanning Responses . | . . . . . . . . . . . . . . . . . . . . . . . . . . . . . . Cargo Convoy Interrupts . | . . . . . . . . . . . . . . . . . . . . . . . . . . . . . . Stealth | -11 -10 -10 -9 -9 -6 -6 -6 -6 -6 -6 -6 -5 -5 -5 -5 -4 -4 -4 -4 -4 -4 -4 -3 -3 -3 -2 -2 -2 -1 --------- Run | Yrd Mat Sub Rec Scr Fac Was Fac Ext Cet Arc Hub Fac Upp Upp Zhi Pro Fac Was Fac Upp Upp War Pro Res Tes Res Qua Sec Acc Distress Signals 40 | . . . . . 1 . . 5 2 . 7 1 . . . . 1 . 2 . . . . 8 6 . . 2 5 Communications Jammed . | . . . . . . . . . . . . . . . . . . . . . . . . . . . . . . Distress Signals . | . . . . . . . . . . . . . . . . . . . . . . . . . . . . . . Times Spotted 987 | . 20 24 . . 34 6 16 49 11 25 35 34 3 14 . 4 30 . 38 7 3 104 2 24 42 16 9 201 236 Peak Tracking Total 20 | . 4 6 . . 9 2 4 5 5 2 10 7 3 7 . 2 6 . 6 3 1 20 2 5 6 7 2 14 15 Tactical Retreats 30 | . 1 2 . . 2 . . 2 . . . 2 . . . . . . 2 . . 5 . 1 2 . 1 5 5 Traps | -11 -10 -10 -9 -9 -6 -6 -6 -6 -6 -6 -6 -5 -5 -5 -5 -4 -4 -4 -4 -4 -4 -4 -3 -3 -3 -2 -2 -2 -1 ------- Run | Yrd Mat Sub Rec Scr Fac Was Fac Ext Cet Arc Hub Fac Upp Upp Zhi Pro Fac Was Fac Upp Upp War Pro Res Tes Res Qua Sec Acc Traps Triggered 19 | . . . . . 1 . 2 3 . . . . . . . . 2 . 2 . . . . 3 . 1 5 . . Indirectly . | . . . . . . . . . . . . . . . . . . . . . . . . . . . . . . Trap Hack Attempts 7 | . . . . . . . . . . . . . . . . . . . 7 . . . . . . . . . . Triggered . | . . . . . . . . . . . . . . . . . . . . . . . . . . . . . . Disarmed . | . . . . . . . . . . . . . . . . . . . . . . . . . . . . . . Reprogrammed 5 | . . . . . . . . . . . . . . . . . . . 2 . . . . . . . 3 . . Reused 10 | . . 1 . . . . . . . . . . . . . . . . 2 . . . . . . . 7 . . Traps Extracted 14 | . . . . . . . . . . . . . . . . . . . 2 4 . 2 . . . . 6 . . Installed 14 | . . 2 . . . . . . . . . . . . . . . . 2 . . . . . . . 10 . . Triggered 9 | . . . . . . . . . . . . . . . . . . . 2 . . . . . . . 7 . . Most Traps Carried 5 | . . 1 . . . . . . . . . . . . . . . . 2 3 3 5 5 5 5 5 5 . . Machines | -11 -10 -10 -9 -9 -6 -6 -6 -6 -6 -6 -6 -5 -5 -5 -5 -4 -4 -4 -4 -4 -4 -4 -3 -3 -3 -2 -2 -2 -1 ---------- Run | Yrd Mat Sub Rec Scr Fac Was Fac Ext Cet Arc Hub Fac Upp Upp Zhi Pro Fac Was Fac Upp Upp War Pro Res Tes Res Qua Sec Acc Machines Disabled 147 | . 2 4 . . 21 . 6 3 . 3 9 11 . 5 . . 11 . 19 . 1 1 . 6 6 . 9 16 14 Max in Single Turn 7 | . 1 3 . . 7 . 3 1 . 1 3 1 . 1 . . 6 . 7 . 1 1 . 1 2 . 1 2 1 Garrison Access 12 | . . . . . . . 2 . . . . 2 . . . . 2 . . . . . . . . 2 1 . 3 Network Hub 3 | . . . . . . . . . . . 3 . . . . . . . . . . . . . . . . . . Energy Cycler 1 | . . . . . . . . . . . . . . . . . . . . . . . . . . . . . 1 Machines Repaired 6 | . . . . . . . 1 1 . . . . . . . . . . 2 . . . . 1 . . 1 . . Machines Dismantled 1 | . . . . . . . . . . . . . . . . . . . . . . 1 . . . . . . . Machines Sabotaged 1 | . . . . . . . . . . . 1 . . . . . . . . . . . . . . . . . . Overloaded Fab Kills . | . . . . . . . . . . . . . . . . . . . . . . . . . . . . . . Hacking | -11 -10 -10 -9 -9 -6 -6 -6 -6 -6 -6 -6 -5 -5 -5 -5 -4 -4 -4 -4 -4 -4 -4 -3 -3 -3 -2 -2 -2 -1 --------- Run | Yrd Mat Sub Rec Scr Fac Was Fac Ext Cet Arc Hub Fac Upp Upp Zhi Pro Fac Was Fac Upp Upp War Pro Res Tes Res Qua Sec Acc Machines Accessed 130 | . 7 4 6 . 8 . 9 11 1 . 5 10 1 . 4 . 14 . 6 2 2 1 . 7 7 4 9 12 . Terminals 70 | . 6 . 5 . 2 . 3 10 1 . 5 5 . . . . 8 . 2 . 1 . . 1 4 . 7 10 . Fabricators 8 | . . . . . 1 . 1 . . . . 2 . . . . 2 . 1 . . . . 1 . . . . . Repair Stations 11 | . . . . . . . 1 . . . . . . . . . 2 . 2 . . . . 1 1 . 2 2 . Recycling Units 13 | . 1 . 1 . 3 . 1 1 . . . 2 . . . . . . 1 . . . . 2 . 1 . . . Scanalyzers 7 | . . . . . 2 . 1 . . . . . . . . . . . . . . . . 1 2 1 . . . Garrison Access 8 | . . . . . . . 2 . . . . 1 . . . . 2 . . . . . . 1 . 2 . . . Total Hacks 410 | . 19 7 13 . 20 . 19 21 2 . 9 36 1 . 15 . 61 . 31 4 3 1 . 28 34 10 28 48 . Successful 211 | . 10 7 12 . 10 . 15 12 1 . 4 18 1 . 15 . 26 . 11 4 3 1 . 8 10 5 15 23 . Failed 197 | . 9 . 1 . 10 . 4 9 1 . 5 18 . . . . 35 . 20 . . . . 19 23 5 13 25 . Catastrophic 33 | . . . . . 1 . 1 3 . . 2 4 . . . . 3 . 4 . . . . 7 5 . 1 2 . Database Lockouts 2 | . . . . . . . . . . . . . . . . . . . . . . . . 1 1 . . . . Manual 174 | . 16 . 11 . 5 . 8 11 1 . 7 17 . . . . 25 . 11 . . . . 15 7 3 3 34 . Terminals 237 | . 18 . 11 . 5 . 8 20 2 . 9 23 . . . . 44 . 13 . 2 . . 3 22 . 15 42 . Fabricators 28 | . . . . . 2 . 2 . . . . 7 . . . . 9 . 4 . . . . 4 . . . . . Repair Stations 44 | . . . . . . . 1 . . . . . . . . . 6 . 10 . . . . 5 3 . 13 6 . Recycling Units 33 | . 1 . 2 . 6 . 1 1 . . . 5 . . . . . . 4 . . . . 9 . 4 . . . Scanalyzers 27 | . . . . . 7 . 4 . . . . . . . . . . . . . . . . 5 9 2 . . . Garrison Access 12 | . . . . . . . 3 . . . . 1 . . . . 2 . . . . . . 2 . 4 . . . Terminal Hacks 100 | . 7 7 1 . 2 . 4 8 1 . 2 8 1 . 15 . 10 . 1 4 3 1 . . 5 . 7 13 . Record 16 | . . 4 . . . . . . . . . . . . 4 . . . . 3 3 . . . . . 1 1 . Part Schematic 5 | . . . . . . . 1 . . . . . . . 3 . 1 . . . . . . . . . . . . Robot Schematic 1 | . 1 . . . . . . . . . . . . . . . . . . . . . . . . . . . . Robot Analysis 10 | . 3 . 1 . . . . . . . . . . . 4 . 1 . . . . . . . . . . 1 . Prototype ID Bank 4 | . . . . . . . . . . . . . . . 4 . . . . . . . . . . . . . . Open Door 15 | . . 1 . . . . . 6 1 . . . 1 . . . . . . 1 . 1 . . . . 1 3 . Level Access Points 2 | . . . . . . . . . . . 1 . . . . . . . . . . . . . . . . 1 . Branch Access Points 4 | . . . . . 1 . . . . . . 1 . . . . 1 . 1 . . . . . . . . . . Terminal Index 3 | . . . . . . . . . . . 1 . . . . . 1 . . . . . . . . . . 1 . Fabricator Index 2 | . . . . . . . 1 . . . . . . . . . 1 . . . . . . . . . . . . Alert Level 7 | . . . . . . . 1 1 . . . 1 . . . . 1 . . . . . . . 2 . 1 . . Unreport Threat 2 | . . . . . . . 1 . . . . . . . . . . . . . . . . . . . 1 . . Locate Traps 11 | . 3 . . . . . . . . . . 1 . . . . 3 . . . . . . . 1 . 1 2 . Reprogram Traps 2 | . . . . . . . . . . . . . . . . . . . . . . . . . . . 2 . . Recall Investigation 1 | . . . . . . . . . . . . 1 . . . . . . . . . . . . . . . . . Recall Extermination 1 | . . . . . . . . . . . . . . . . . . . . . . . . . . . . 1 . Recall Reinforcements 1 | . . . . . . . . 1 . . . . . . . . . . . . . . . . . . . . . Hauler Manifests 1 | . . . . . . . . . . . . 1 . . . . . . . . . . . . . . . . . Registered Components 2 | . . . . . 1 . . . . . . 1 . . . . . . . . . . . . . . . . . Zone Layout 5 | . . . . . . . . . . . . 2 . . . . 1 . . . . . . . . . . 2 . Proto ID Catalog 1 | . . 1 . . . . . . . . . . . . . . . . . . . . . . . . . . . Protovariant Controls 2 | . . . . . . . . . . . . . . . . . . . . . . . . . 2 . . . . Activate Exoskeleton 1 | . . . . . . . . . . . . . . . . . . . . . . . . . . . . 1 . Release Object 1 | . . 1 . . . . . . . . . . . . . . . . . . . . . . . . . . . Fabricator Hacks 12 | . . . . . 1 . 2 . . . . 3 . . . . 3 . 2 . . . . 1 . . . . . Network Status 2 | . . . . . 1 . . . . . . 1 . . . . . . . . . . . . . . . . . Load Schematic 6 | . . . . . . . 1 . . . . 1 . . . . 2 . 1 . . . . 1 . . . . . Build 4 | . . . . . . . 1 . . . . 1 . . . . 1 . 1 . . . . . . . . . . Repair Station Hacks 23 | . . . . . . . . . . . . . . . . . 4 . 5 . . . . 2 1 . 7 4 . Scan Component 13 | . . . . . . . . . . . . . . . . . 2 . 3 . . . . 1 1 . 4 2 . Repair 10 | . . . . . . . . . . . . . . . . . 2 . 2 . . . . 1 . . 3 2 . Recycling Unit Hacks 1 | . . . 1 . . . . . . . . . . . . . . . . . . . . . . . . . . Retrieve Components 1 | . . . 1 . . . . . . . . . . . . . . . . . . . . . . . . . . Scanalyzer 14 | . . . . . 4 . 4 . . . . . . . . . . . . . . . . 3 1 2 . . . Insert Component 6 | . . . . . 2 . 2 . . . . . . . . . . . . . . . . 2 . . . . . Analyze 3 | . . . . . 2 . 1 . . . . . . . . . . . . . . . . . . . . . . Retrieve Study 5 | . . . . . . . 1 . . . . . . . . . . . . . . . . 1 1 2 . . . Garrison Access Hacks 7 | . . . . . . . 2 . . . . 1 . . . . 2 . . . . . . . . 2 . . . Seal Access 7 | . . . . . . . 2 . . . . 1 . . . . 2 . . . . . . . . 2 . . . Unauthorized Hacks 54 | . 3 . 10 . 3 . 3 4 . . 2 6 . . . . 7 . 3 . . . . 2 3 1 1 6 . Terminals 39 | . 2 . 9 . . . 2 3 . . 2 3 . . . . 6 . 1 . . . . 1 3 . 1 6 . Track 4 | . . . . . . . . . . . . . . . . . . . . . . . . . 1 . . 3 . Botnet 25 | . 2 . 4 . . . 2 2 . . . 3 . . . . 4 . 1 . . . . 1 2 . 1 3 . Disrupt 1 | . . . . . . . . 1 . . . . . . . . . . . . . . . . . . . . . Operators 1 | . . . . . . . . . . . . . . . . . 1 . . . . . . . . . . . . Skim 6 | . . . 5 . . . . . . . . . . . . . 1 . . . . . . . . . . . . Sabotage 2 | . . . . . . . . . . . 2 . . . . . . . . . . . . . . . . . . Fabricators 2 | . . . . . . . . . . . . 1 . . . . 1 . . . . . . . . . . . . Prioritize 1 | . . . . . . . . . . . . 1 . . . . . . . . . . . . . . . . . Recompile 1 | . . . . . . . . . . . . . . . . . 1 . . . . . . . . . . . . Repair Stations 1 | . . . . . . . . . . . . . . . . . . . 1 . . . . . . . . . . Mechanics 1 | . . . . . . . . . . . . . . . . . . . 1 . . . . . . . . . . Recycling Units 12 | . 1 . 1 . 3 . 1 1 . . . 2 . . . . . . 1 . . . . 1 . 1 . . . Recyclers 2 | . . . . . 1 . . . . . . . . . . . . . . . . . . . . 1 . . . Tunnel 2 | . 1 . 1 . . . . . . . . . . . . . . . . . . . . . . . . . . Fedlink 1 | . . . . . 1 . . . . . . . . . . . . . . . . . . . . . . . . Scrapoids 7 | . . . . . 1 . 1 1 . . . 2 . . . . . . 1 . . . . 1 . . . . . Scanalyzers . | . . . . . . . . . . . . . . . . . . . . . . . . . . . . . . Garrison Access . | . . . . . . . . . . . . . . . . . . . . . . . . . . . . . . Data Cores Recovered 2 | . . . . . . . . . . . . . . . . . 1 . 1 . . . . . . . . . . Used 1 | . . . . . . . . . . . . . . . . . . . 1 . . . . . . . . . . Hacking Detections 80 | . 6 . 4 . 7 . 7 8 1 . 3 6 . . . . 7 . 5 . . . . 5 7 4 4 6 . Full Trace Events 10 | . . . . . 3 . 2 . . . . 1 . . . . . . 2 . . . . 1 . . 1 . . Feedback Events 1 | . . . . . 1 . . . . . . . . . . . . . . . . . . . . . . . . Corruption 1 | . . . . . 1 . . . . . . . . . . . . . . . . . . . . . . . . Feedback Blocked . | . . . . . . . . . . . . . . . . . . . . . . . . . . . . . . Robot Schematics Acquired 8 | . 1 . . . . . . . . . . . . . . . . . . . . . . . 7 . . . . Robots Built . | . . . . . . . . . . . . . . . . . . . . . . . . . . . . . . Authchips . | . . . . . . . . . . . . . . . . . . . . . . . . . . . . . . Time . | . . . . . . . . . . . . . . . . . . . . . . . . . . . . . . Total Robot Build Rating . | . . . . . . . . . . . . . . . . . . . . . . . . . . . . . . Part Schematics Acquired 85 | . . . . . 11 4 4 4 2 1 3 3 . 7 4 1 5 . 2 4 . 4 . . 26 . . . . Parts Built 5 | . . . . . . . 1 . . . . 1 . . . . 1 . 2 . . . . . . . . . . Authchips 1 | . . . . . . . . . . . . . . . . . 1 . . . . . . . . . . . . Time 127 | . . . . . . . 25 . . . . 25 . . . . 42 . 35 . . . . . . . . . . Total Part Build Rating 18 | . . . . . . . 1 . . . . 1 . . . . 4 . 12 . . . . . . . . . . Part Studies Acquired 5 | . . . . . . . 1 . . . . . . . . . . . . . . . . 1 1 2 . . . Parts Repaired 9 | . . . . . . . . . . . . . . . . . 2 . 2 . . . . 1 . . 3 1 . Time 267 | . . . . . . . . . . . . . . . . . 34 . 116 . . . . 8 . . 39 70 . Parts Recycled . | . . . . . . . . . . . . . . . . . . . . . . . . . . . . . . Recycled Matter . | . . . . . . . . . . . . . . . . . . . . . . . . . . . . . . Retrieved Matter . | . . . . . . . . . . . . . . . . . . . . . . . . . . . . . . Retrieved Components 3 | . . . 3 . . . . . . . . . . . . . . . . . . . . . . . . . . Parts Scanalyzed 3 | . . . . . 2 . 1 . . . . . . . . . . . . . . . . . . . . . . Part Schematics Acquired 3 | . . . . . 2 . 1 . . . . . . . . . . . . . . . . . . . . . . Parts Damaged 1 | . . . . . . . 1 . . . . . . . . . . . . . . . . . . . . . . Bothacking | -11 -10 -10 -9 -9 -6 -6 -6 -6 -6 -6 -6 -5 -5 -5 -5 -4 -4 -4 -4 -4 -4 -4 -3 -3 -3 -2 -2 -2 -1 ------------ Run | Yrd Mat Sub Rec Scr Fac Was Fac Ext Cet Arc Hub Fac Upp Upp Zhi Pro Fac Was Fac Upp Upp War Pro Res Tes Res Qua Sec Acc Used RIF Installer . | . . . . . . . . . . . . . . . . . . . . . . . . . . . . . . Robots Hacked 2 | . . . . . . . . 1 . 1 . . . . . . . . . . . . . . . . . . . Non-combat . | . . . . . . . . . . . . . . . . . . . . . . . . . . . . . . Combat 2 | . . . . . . . . 1 . 1 . . . . . . . . . . . . . . . . . . . Robot Hacks Applied 2 | . . . . . . . . 1 . 1 . . . . . . . . . . . . . . . . . . . parse_system 2 | . . . . . . . . 1 . 1 . . . . . . . . . . . . . . . . . . . Relay Couplers Released 15 | . . . . . . . 4 . . . . 6 . . . . . . . . . . . . . 2 1 . 2 Machine Destruction 8 | . . . . . . . . . . . . 3 . . . . . . . . . . . . . 2 1 . 2 Programmers 7 | . . . . . . . 4 . . . . 3 . . . . . . . . . . . . . . . . . Fabnet Peak Effective % . | . . . . . . . . . . . . . . . . . . . . . . . . . . . . . . Robots Rewired 21 | . . . . . . . . 16 . . . . . . . . . . . . . 5 . . . . . . . Allies Hacked 4 | . . . . . . . 1 1 . . . 1 . . . . . . . . . 1 . . . . . . . Hacks Repelled . | . . . . . . . . . . . . . . . . . . . . . . . . . . . . . . Allies | -11 -10 -10 -9 -9 -6 -6 -6 -6 -6 -6 -6 -5 -5 -5 -5 -4 -4 -4 -4 -4 -4 -4 -3 -3 -3 -2 -2 -2 -1 -------- Run | Yrd Mat Sub Rec Scr Fac Was Fac Ext Cet Arc Hub Fac Upp Upp Zhi Pro Fac Was Fac Upp Upp War Pro Res Tes Res Qua Sec Acc Total Allies 93 | . . . . . 5 18 5 30 5 . . 10 . . . . 1 . 5 2 1 5 . 5 . . . 1 . Largest Group 18 | . . . . . 5 18 16 15 11 8 5 5 4 3 . . 1 . 5 5 3 5 . 5 . . . 1 1 Highest-Rated Group 1204 | . . . . . 140 656 556 558 643 640 404 241 191 141 . . 110 . 241 235 210 305 . 326 . . . 1204 1204 Highest-Rated Ally 1204 | . . . . . 28 50 46 159 138 123 96 50 50 47 . . 110 . 50 47 116 64 . 67 . . . 1204 1204 Initial UFD Resources 29 | . . . . . 22 29 29 26 23 23 23 25 19 19 19 21 21 21 21 18 18 18 20 20 17 20 20 20 22 Total Orders 30 | . . . . . . . . . 2 2 . 3 2 6 . . . . . 2 2 7 . . . 3 . 1 . STAY 14 | . . . . . . . . . 1 1 . 1 1 2 . . . . . 1 1 6 . . . . . . . FOLLOW 10 | . . . . . . . . . 1 1 . 1 1 2 . . . . . 1 1 1 . . . 1 . . . EXPLORE 3 | . . . . . . . . . . . . 1 . 2 . . . . . . . . . . . . . . . RETURN 3 | . . . . . . . . . . . . . . . . . . . . . . . . . . 2 . 1 . Ally Attacks 1170 | . . . . . 4 111 158 199 90 22 15 108 14 17 . . 1 . 4 52 . 3 . 20 . . . 103 249 Total Damage 55138 | . . . . . 77 2155 3153 4389 2708 746 840 1914 331 304 . . 53 . 97 970 . 121 . 741 . . . 12284 24255 Kills 240 | . . . . . . 4 27 42 9 2 8 18 1 2 . . . . 1 5 . 1 . 6 . . . 38 76 Allies Corrupted 9 | . . . . . . 2 3 . . . 1 2 . . . . . . . . . 1 . . . . . . . Allies Melted 2 | . . . . . . . 1 . . . . . . . . . . . . . . 1 . . . . . . . Intel | -11 -10 -10 -9 -9 -6 -6 -6 -6 -6 -6 -6 -5 -5 -5 -5 -4 -4 -4 -4 -4 -4 -4 -3 -3 -3 -2 -2 -2 -1 ------- Run | Yrd Mat Sub Rec Scr Fac Was Fac Ext Cet Arc Hub Fac Upp Upp Zhi Pro Fac Was Fac Upp Upp War Pro Res Tes Res Qua Sec Acc Active Infowar (turns) 29552 | 23 1153 525 31 . 479 136 2 . . . . 926 1718 1634 445 1911 1472 249 1909 1346 1024 964 405 1539 2132 722 5435 1456 1916 Optics 9233 | . . . . . . . . . . . . . . . . . . . . . . . . . 2095 722 4312 207 1897 Sensors 22061 | . . . . . . 136 2 . . . . 926 1718 1634 445 1911 1471 249 1822 1279 1024 964 404 1524 1772 536 3174 . 1070 Terrain 2 | . . . . . . . . . . . . . . . . . . . . . . . . . . . 2 . . Structural 9364 | . . . . . . . . . . . . . . . . . . . 87 2 . . 95 1421 1643 623 3230 1194 1069 Traps 67 | . . . . . . . . . . . . . . . . . . . . 67 . . . . . . . . . Seismic 4455 | 23 1153 525 31 . 479 . . . . . . . . . . . . . . . . . . . . . 698 1157 389 Triangulation 1 | . . . . . . . . . . . . . . . . . . . . . . . . . . . 1 . . Jamming 55 | . . . . . . . . . . . . . . . . . . . . . . . . 55 . . . . . ECM 4 | . . . . . . . . . . . . . . . . . 1 . . . . . . 2 . . 1 . . Robot Analysis Total 10 | . 3 . 1 . . . . . . . . . . . 4 . 1 . . . . . . . . . . 1 . Derelict Logs Recovered 14 | . . 2 . 4 . . . . . . . . 2 2 . 2 . . . 1 1 . . . . . . . . Drone Launches 22 | . . . . . . . . . . . . 2 . 2 . . . . . 9 . . . . . 3 . 6 . Drone Recoveries 10 | . . . . . . . . . . . . . . . . . . . . 3 . . . . . 3 . 4 . Exploration | -11 -10 -10 -9 -9 -6 -6 -6 -6 -6 -6 -6 -5 -5 -5 -5 -4 -4 -4 -4 -4 -4 -4 -3 -3 -3 -2 -2 -2 -1 ------------- Run | Yrd Mat Sub Rec Scr Fac Was Fac Ext Cet Arc Hub Fac Upp Upp Zhi Pro Fac Was Fac Upp Upp War Pro Res Tes Res Qua Sec Acc Turns Passed 50548 | 73 1191 4595 1136 4119 705 971 1309 1528 455 758 838 1209 1729 1896 449 1944 1807 1002 2232 1494 1307 2310 430 1670 2132 722 5731 2890 1916 Spaces Moved 27439 | 58 744 2540 544 2349 445 504 733 666 193 332 257 735 1009 926 171 943 990 604 995 936 890 1116 249 1150 1164 376 3601 1261 958 Core 4 | 4 . . . . . . . . . . . . . . . . . . . . . . . . . . . . . Treads 809 | . . 806 . . . 3 . . . . . . . . . . . . . . . . . . . . . . . Legs . | . . . . . . . . . . . . . . . . . . . . . . . . . . . . . . Wheels 26626 | 54 744 1734 544 2349 445 501 733 666 193 332 257 735 1009 926 171 943 990 604 995 936 890 1116 249 1150 1164 376 3601 1261 958 Hover . | . . . . . . . . . . . . . . . . . . . . . . . . . . . . . . Flight . | . . . . . . . . . . . . . . . . . . . . . . . . . . . . . . Fastest Speed 50 | 50 80 100 190 110 98 98 150 150 150 140 123 123 150 130 180 190 120 130 130 130 130 110 110 110 130 130 130 120 120 Average Speed 143 | 77 129 156 190 171 100 148 150 150 150 149 145 127 159 163 198 199 129 130 130 130 130 129 122 113 130 130 135 140 127 Slowest Speed 320 | 80 200 320 190 210 104 240 150 150 150 150 150 160 160 200 200 200 130 130 130 130 130 130 130 130 130 130 150 150 130 Overloaded Moves . | . . . . . . . . . . . . . . . . . . . . . . . . . . . . . . Propulsion Burnouts . | . . . . . . . . . . . . . . . . . . . . . . . . . . . . . . Robots Hopped . | . . . . . . . . . . . . . . . . . . . . . . . . . . . . . . Potential Cave-ins 5 | . . . . . . . . . . . 3 . . . . . . . . . . . . 2 . . . . . Cave-ins Triggered . | . . . . . . . . . . . . . . . . . . . . . . . . . . . . . . Teleports 1 | . . . . . . . . . . . . . . . . . . . . . . . . . 1 . . . . Exploration Rate (%) 64 | 4 82 84 89 88 22 97 21 85 68 92 27 22 96 96 61 88 24 96 23 94 92 95 48 41 94 14 99 70 37 Regions Visited 29 Branch Regions 18 Pre-discovered Areas 10 | . 1 . 2 2 . . . . . . . . 1 . 3 . . . . 1 . . . . . . . . . Known Exits Taken 16 | . . . . . . . 1 . . . 1 1 1 1 1 1 . . 1 1 1 1 1 1 1 1 . 1 . Unknown Exits Taken 9 | 1 1 1 1 1 . . . 1 1 1 . . . . . . . . . . . . . . . . 1 . . Scrap Searched 29 | . . 3 . 5 . . . . . . . . 3 5 . 2 . . . 5 1 . 5 . . . . . . Spaces Dug 139 | . 2 8 . . 5 . 2 1 . . 4 1 . 7 . . 5 . 13 . . . 7 21 25 4 12 15 7 Terrain Destroyed 1889 | . 20 86 1 . 250 12 61 86 . 3 56 11 7 143 . 29 123 13 235 1 4 181 9 79 122 38 43 85 191 Melee 18 | . . . . . 1 . . . . . . . . . . . 1 . 7 . . . . 3 6 . . . . Projectile 687 | . 2 8 1 . 23 12 13 30 . 3 54 3 3 47 . 4 75 13 94 1 4 55 9 58 91 38 12 25 9 AOE 1031 | . 18 78 . . 226 . 48 56 . . 2 7 4 96 . 25 47 . 132 . . 126 . 18 24 . 21 41 62 Terrain Rammed . | . . . . . . . . . . . . . . . . . . . . . . . . . . . . . . Walls Destroyed . | . . . . . . . . . . . . . . . . . . . . . . . . . . . . . . Machines Disabled . | . . . . . . . . . . . . . . . . . . . . . . . . . . . . . . Actions | -11 -10 -10 -9 -9 -6 -6 -6 -6 -6 -6 -6 -5 -5 -5 -5 -4 -4 -4 -4 -4 -4 -4 -3 -3 -3 -2 -2 -2 -1 --------- Run | Yrd Mat Sub Rec Scr Fac Was Fac Ext Cet Arc Hub Fac Upp Upp Zhi Pro Fac Was Fac Upp Upp War Pro Res Tes Res Qua Sec Acc Total 36064 | 73 873 2980 645 2443 605 695 910 1108 339 523 538 957 1093 1248 220 987 1432 810 1768 1200 1039 1896 362 1440 1599 536 4380 2041 1324 Wait 4881 | . 32 179 87 29 40 119 80 235 102 132 120 111 33 206 . 26 306 177 580 203 124 571 78 114 212 77 461 351 96 Move 27411 | 57 743 2539 543 2348 445 503 732 665 192 331 256 734 1008 925 170 942 990 603 994 935 889 1115 248 1149 1163 375 3600 1260 957 Hop . | . . . . . . . . . . . . . . . . . . . . . . . . . . . . . . Pick Up 352 | 4 15 41 9 20 10 16 18 6 11 4 19 17 7 9 4 . 13 4 7 8 4 15 6 13 10 6 26 25 5 Fast Attach 263 | 7 4 15 . 10 4 6 1 4 2 7 2 8 . 8 6 2 4 3 3 7 1 11 2 14 24 3 73 29 3 Attach 211 | . 1 7 . 2 12 7 1 4 2 . 20 8 2 10 . . 10 2 6 3 4 13 2 17 4 9 24 20 21 Detach 100 | . . 2 . . 3 5 1 . . . 6 2 . 2 . . 3 . 2 2 1 6 . 15 . 6 16 12 16 Swap 459 | 1 24 24 3 3 9 1 14 11 4 3 8 10 3 10 3 8 35 5 61 10 1 24 7 17 34 17 15 79 15 Drop 482 | . 9 50 2 22 4 10 23 10 12 8 11 21 7 19 7 . 9 6 8 16 3 22 6 18 36 5 93 39 6 Fire 1587 | 4 45 116 1 4 67 28 30 66 14 37 93 46 33 59 30 9 57 10 85 14 6 70 13 77 96 38 46 207 186 Melee 64 | . . . . 4 11 . . 1 . 1 . . . . . . 5 . 10 . 6 . . 3 20 . 3 . . Ram 3 | . . . . . . . . . . . 3 . . . . . . . . . . . . . . . . . . Kick . | . . . . . . . . . . . . . . . . . . . . . . . . . . . . . . Crush . | . . . . . . . . . . . . . . . . . . . . . . . . . . . . . . Escape Stasis 78 | . . . . . . . 8 24 . . . . . . . . . . . . . . . . . . 8 19 19 Rewire 124 | . . . . 1 . . 1 81 . . . . . . . . . . . . . 41 . . . . . . . Trap 21 | . . 2 . . . . . . . . . . . . . . . . 9 . . . . . . . 10 . . Miscellaneous 28 | . . 5 . . . . 1 1 . . . . . . . . . . 3 2 . 8 . 3 . . 5 . . Route ------- -11/Scrapyard -10/Materials (discovered 4 exits: [*Mat x2] / [*Min] / *Sub) -10/Subcaves (discovered 3 exits: [*Mat x2] / *Rec) -9/Recycling (discovered 2 exits: [*Fac] / *Scr) -9/Scraptown (discovered 2 exits: *Fac x2) -6/Factory (discovered 5 exits: Fac / Low x2 / Ext x2) -6/Waste -6/Factory -6/Extension (discovered 2 exits: *Fac / *Cet) -6/Cetus (discovered 2 exits: *Fac / [*Arc]) -6/Archives (discovered 3 exits: *Fac / *Hub x2) -6/Hub_04(d) (discovered 4 exits: *Fac x4) -5/Factory (discovered 2 exits: *Upp x2) -5/Upper Caves -5/Upper Caves (discovered 2 exits: *Fac / *Zhi) -5/Zhirov -4/Proximity Caves -4/Factory (discovered 3 exits: *Res / Upp x2) -4/Waste -4/Factory (discovered 3 exits: *Res / *Upp x2) -4/Upper Caves -4/Upper Caves (discovered 2 exits: *Res / *War) -4/Warlord -3/Proximity Caves -3/Research (discovered 4 exits: *Res x2 / *Arm / *Tes) -3/Testing -2/Research -2/Quarantine (discovered 3 exits: *Acc / *Sec / [*Frg]) -2/Section 7 -1/Access Tau Ceti IV Orbit History --------- Turn | Location | Event 2 | -11/Scrapyard | Met Revision 17 8 | -11/Scrapyard | Discovered new exit (range 15) 74 | -11/Scrapyard | Entered Materials 314 | -10/Materials | Build established: Mutant 414 | -10/Materials | Discovered new exit (range 13) 725 | -10/Materials | Discovered new exit (range 16) 879 | -10/Materials | Discovered new exit (range 16) 1253 | -10/Materials | Discovered new exit (range 9) 1265 | -10/Materials | Entered Subcaves 1697 | -10/Subcaves | Ambushed by Subdwellers from Twisted Machinery 1721 | -10/Subcaves | Core integrity fell below 50% 1777 | -10/Subcaves | Lost 6 parts (1p1n1u3w) 2133 | -10/Subcaves | Core integrity fell below 20% 2155 | -10/Subcaves | Build established: Scavenger-Mutant 2166 | -10/Subcaves | Learned location of 1 exit from Materials 2170 | -10/Subcaves | Discovered new exit (range 3) 2192 | -10/Subcaves | A swath of the cavern ceiling suddenly collapsed 2594 | -10/Subcaves | Discovered new exit (range 15) 2795 | -10/Subcaves | A swath of the cavern ceiling suddenly collapsed 3336 | -10/Subcaves | Shifting Twisted Machinery released Sub. Shrapnel Launcher 3339 | -10/Subcaves | Shifting Twisted Machinery released Sub. Beam Cannon 3403 | -10/Subcaves | Build established: Subdweller-Mutant 3933 | -10/Subcaves | A Subdweller sparked back to life 3962 | -10/Subcaves | Found Prototype Protection 4045 | -10/Subcaves | Visited 4L-MR0's lab 4049 | -10/Subcaves | Learned 8 Materials zone layouts 4052 | -10/Subcaves | Identified Gun Armor 4400 | -10/Subcaves | Visited Clippyterm 4405 | -10/Subcaves | Learned Factory fabricator intel 4843 | -10/Subcaves | Found Meta Core 5213 | -10/Subcaves | Discovered new exit (range 13) 5573 | -10/Subcaves | Found SUBCON Basin 5612 | -10/Subcaves | Build established: Mutant 5860 | -10/Subcaves | Entered Recycling 6201 | -9/Recycling | Discovered new exit (range 10) 6276 | -9/Recycling | Learned Materials terminal intel 6304 | -9/Recycling | Scanned before Scraplab entrance 6330 | -9/Recycling | Entered Scraplab 6338 | -9/Recycling | Learned Materials trap positions 6390 | -9/Recycling | Learned Materials emergency access door positions 6516 | -9/Recycling | Learned 4 Materials zone layouts 6560 | -9/Recycling | Learned location of Zion (-7) 6994 | -9/Recycling | Discovered new exit (range 2) 6996 | -9/Recycling | Entered Scraptown 7264 | -9/Scraptown | Visited Fellowship of the Rings 7279 | -9/Scraptown | Visited Symbiants 7309 | -9/Scraptown | Visited Cyclists 7321 | -9/Scraptown | Visited CR-KLE's Repair Center 7338 | -9/Scraptown | Visited Spacefarers 7372 | -9/Scraptown | Visited Awakened 7399 | -9/Scraptown | Visited IN-MT5's Study 7496 | -9/Scraptown | Scanned Subdweller tech in exchange for log data 7499 | -9/Scraptown | Learned 8 Factory zone layouts 7501 | -9/Scraptown | Learned location of Armory (-3) 7503 | -9/Scraptown | Learned Research terminal intel 7505 | -9/Scraptown | Learned Factory security intel 7526 | -9/Scraptown | Discovered new exit (range 13) 7942 | -9/Scraptown | Visited UFD Registry 7942 | -9/Scraptown | Registered with UFD as "Microbot" 7997 | -9/Scraptown | Visited Derelict Rescue Squad 8009 | -9/Scraptown | Found DRS Beacon 8048 | -9/Scraptown | Visited Scrapoid Research Area 8082 | -9/Scraptown | Visited Curators Association 8169 | -9/Scraptown | Delivered Scrap Shield to a Scientist 8293 | -9/Scraptown | Visited Scrap Suit Storage 8320 | -9/Scraptown | Visited DA-N13 Charitable Foundation 8327 | -9/Scraptown | Found DCF Scrap (27 items) 8394 | -9/Scraptown | Visited Modified Component R&D 8457 | -9/Scraptown | Visited Infowarlord's Domain 8476 | -9/Scraptown | Found Exp. Sensor Array 8524 | -9/Scraptown | Visited Science Testing Area 8933 | -9/Scraptown | Attached Meta Core, gained temporary slots: Propulsion, Utility, Weapon 8970 | -9/Scraptown | Found Scrap Suit 9255 | -9/Scraptown | Attached CPS modules to 09S01-D 9557 | -9/Scraptown | Found Scrap Suit 9635 | -9/Scraptown | Build established: Derelict-Mutant 10049 | -9/Scraptown | Attached CPS modules to H-55 Commando 10406 | -9/Scraptown | Heard Great Nut preacher, LISTEN AND RECITE! 10532 | -9/Scraptown | Entered Cyclist Reading Room 11036 | -9/Scraptown | Met Optimus 11036 | -9/Scraptown | Accepted into 0bPrime 11111 | -9/Scraptown | Discovered new exit (range 3) 11115 | -9/Scraptown | Entered Factory 11115 | -6/Factory | Evolved 8 slots: Propulsion x2, Utility x5, Weapon x1 11116 | -6/Factory | Identified exit to Factory 11116 | -6/Factory | Identified exit to Extension 11118 | -6/Factory | Loaded intel: 6 fabricator locations 11209 | -6/Factory | Tech Extrapolator generated special schematic: Deep Structural Scanner 11332 | -6/Factory | Spotted B-75 Beast 11345 | -6/Factory | Destroyed 12 combat bots 11465 | -6/Factory | First assault squad dispatched 11585 | -6/Factory | Identified exit to Lower Caves 11645 | -6/Factory | Loaded intel: 8 recycling unit locations 11745 | -6/Factory | Destroyed 9 combat bots 11748 | -6/Factory | Lost 5 parts (1n2u2w) 11819 | -6/Factory | Scrapoid reinforcements arrived 11820 | -6/Factory | Sucked down chute 11820 | -6/Factory | Entered Waste 11830 | -6/Waste | Spotted C-40 Crusher 11915 | -6/Waste | Spotted C-40 Crusher 11918 | -6/Waste | Destroyed C-40 Crusher 11922 | -6/Waste | Spotted C-40 Crusher 11931 | -6/Waste | Destroyed C-40 Crusher 11945 | -6/Waste | 5 allies followed down the chute 11961 | -6/Waste | Found Damper Plating 11982 | -6/Waste | Spotted C-40 Crusher 11986 | -6/Waste | Allies destroyed C-40 Crusher 11992 | -6/Waste | Spotted C-40 Crusher 11997 | -6/Waste | Allies destroyed C-40 Crusher 12006 | -6/Waste | Found Damper Plating 12024 | -6/Waste | Allies destroyed C-40 Crusher 12110 | -6/Waste | Spotted C-40 Crusher 12125 | -6/Waste | Destroyed C-40 Crusher 12145 | -6/Waste | Found Scrap Suit 12147 | -6/Waste | Lost 3 allies 12155 | -6/Waste | Found Scrap Suit 12242 | -6/Waste | Build established: Hauler-Scrapper 12294 | -6/Waste | Discovered new exit (range 11) 12305 | -6/Waste | Warlord forces began an assault 12791 | -6/Waste | Entered Factory 12791 | -6/Factory | Accompanied by 16 allies 13023 | -6/Factory | Lost 3 allies 13209 | -6/Factory | Fabricated Humpback (x1) 13295 | -6/Factory | Lost 6 allies 13397 | -6/Factory | Scrapoids reinforcements arrived? 13472 | -6/Factory | Found Corrupted Scrap Suit 13559 | -6/Factory | Found Scrap Suit 13606 | -6/Factory | Lost 3 allies 13652 | -6/Factory | Discovered exit to Extension (range 9) 13894 | -6/Factory | Murdered 3 allies 14100 | -6/Factory | Entered Extension 14502 | -6/Extension | Rescued a captive Derelict 14507 | -6/Extension | Rescued a captive Derelict 14521 | -6/Extension | Rescued a captive Derelict 14523 | -6/Extension | Rescued a captive Derelict 14537 | -6/Extension | Rescued A7 14751 | -6/Extension | Build established: Commander-Scrapper 14800 | -6/Extension | First assault squad dispatched 14922 | -6/Extension | Spotted B-75 Beast 14933 | -6/Extension | Allies destroyed B-75 Beast 14948 | -6/Extension | Spotted B-75 Beast 14954 | -6/Extension | Destroyed B-75 Beast 14970 | -6/Extension | Lost 4 allies 15050 | -6/Extension | Disrupted transfer network 15100 | -6/Extension | Rescued a captive Derelict 15315 | -6/Extension | Rescued a captive Derelict 15329 | -6/Extension | Rescued a captive Derelict 15384 | -6/Extension | Lost 7 allies 15448 | -6/Extension | Scrapoids reinforcements arrived? 15468 | -6/Extension | Rescued a captive Derelict 15552 | -6/Extension | Found Scrap Suit 15575 | -6/Extension | Discovered exit to Factory (range 10) 15577 | -6/Extension | Discovered new exit (range 6) 15628 | -6/Extension | Entered Cetus 15628 | -6/Cetus | Accompanied by 11 allies (A7) 15630 | -6/Cetus | Attached CPS modules to A7 15633 | -6/Cetus | Acquired a Cetus Manufacturing Module code from A7 15670 | -6/Cetus | Spotted Cetus Guard 15674 | -6/Cetus | Spotted Cetus Guard 15675 | -6/Cetus | Spotted Cetus Guard 15685 | -6/Cetus | Spotted Cetus Guard 15686 | -6/Cetus | Allies destroyed Cetus Guard 15695 | -6/Cetus | Allies destroyed Cetus Guard 15697 | -6/Cetus | Allies destroyed Cetus Guard 15703 | -6/Cetus | Found Scrap Suit 15719 | -6/Cetus | Lost 5 allies 15772 | -6/Cetus | Escorted A7 to Cetus Mainframe 15783 | -6/Cetus | Started Cetus Manufacturing Module 15788 | -6/Cetus | Build established: Hauler-Scrapper 15801 | -6/Cetus | Discovered new exit (range 15) 15808 | -6/Cetus | Manufactured an Enhanced Grunt 15833 | -6/Cetus | Manufactured an Enhanced Grunt 15856 | -6/Cetus | Spotted Cetus Guard 15856 | -6/Cetus | Spotted Cetus Guard 15858 | -6/Cetus | Manufactured an Enhanced Grunt 15860 | -6/Cetus | Spotted Cetus Guard 15861 | -6/Cetus | Spotted Cetus Guard 15878 | -6/Cetus | Allies destroyed Cetus Guard 15879 | -6/Cetus | Destroyed Cetus Guard 15883 | -6/Cetus | Manufactured an Enhanced Grunt 15883 | -6/Cetus | Allies destroyed Cetus Guard 15884 | -6/Cetus | Allies destroyed Cetus Guard 15908 | -6/Cetus | Manufactured an Enhanced Grunt 15913 | -6/Cetus | Lost 3 allies 15913 | -6/Cetus | Discovered exit to Factory (range 15) 15947 | -6/Cetus | Met Revision 17 16083 | -6/Cetus | Entered Archives 16083 | -6/Archives | Accompanied by 8 allies (A7) 16088 | -6/Archives | Received a hacking code to weaken MAIN.C 16088 | -6/Archives | Murdered A7 16101 | -6/Archives | Extracted ID and sensor layout for unrecognized location from A7's data core 16225 | -6/Archives | Discovered exit to Factory (range 16) 16353 | -6/Archives | Discovered new exit (range 13) 16408 | -6/Archives | System corruption reached 10% 16546 | -6/Archives | Discovered new exit (range 13) 16703 | -6/Archives | Found Corrupted Med. Regenerative Plating 16841 | -6/Archives | Entered Hub_04(d) 16841 | -6/Hub_04(d) | Accompanied by 5 allies 16965 | -6/Hub_04(d) | Network Hub disabled 17004 | -6/Hub_04(d) | Lost 5 allies 17006 | -6/Hub_04(d) | Spotted Lightning 17008 | -6/Hub_04(d) | Spotted Lightning 17010 | -6/Hub_04(d) | Spotted Lightning 17030 | -6/Hub_04(d) | Tech Extrapolator generated special schematic: Active Sensor Spoofer 17069 | -6/Hub_04(d) | Destroyed Lightning 17093 | -6/Hub_04(d) | Tech Extrapolator generated special schematic: Energy Deflector 17143 | -6/Hub_04(d) | Destroyed Lightning 17163 | -6/Hub_04(d) | Destroyed Lightning 17176 | -6/Hub_04(d) | Found Prototype Energy Cannon 17184 | -6/Hub_04(d) | Found Prototype Processor 17190 | -6/Hub_04(d) | Core integrity fell below 50% 17202 | -6/Hub_04(d) | Found Prototype Device 17203 | -6/Hub_04(d) | Identified Exp. Phase Shifter 17291 | -6/Hub_04(d) | Spotted Lightning 17293 | -6/Hub_04(d) | Spotted Lightning 17296 | -6/Hub_04(d) | Spotted Lightning 17328 | -6/Hub_04(d) | System corruption reached 30% 17329 | -6/Hub_04(d) | Network Hub disabled 17329 | -6/Hub_04(d) | Network Hub disabled 17369 | -6/Hub_04(d) | Destroyed Lightning 17370 | -6/Hub_04(d) | Lost 3 parts (1n2w) 17411 | -6/Hub_04(d) | Destroyed Lightning 17432 | -6/Hub_04(d) | Destroyed Lightning 17465 | -6/Hub_04(d) | Found Prototype Device 17476 | -6/Hub_04(d) | Identified Exp. EM Shield 17534 | -6/Hub_04(d) | Identified Exp. Targeting Computer 17536 | -6/Hub_04(d) | Found Prototype Energy Cannon 17545 | -6/Hub_04(d) | Found Exp. Targeting Computer 17551 | -6/Hub_04(d) | Found Prototype Energy Cannon 17554 | -6/Hub_04(d) | Identified EMDS (x3) 17577 | -6/Hub_04(d) | Core integrity fell below 20% 17607 | -6/Hub_04(d) | Found EMDS 17679 | -6/Hub_04(d) | Entered Factory 17679 | -5/Factory | Evolved 2 slots: Utility x1, Weapon x1 17934 | -5/Factory | Identified exit to Upper Caves 17986 | -5/Factory | Scrapoids reinforcements arrived? 18177 | -5/Factory | Attached Gun Armor, gained temporary slots: Weapon x2 18179 | -5/Factory | Found Corrupted Scrap Suit 18191 | -5/Factory | Spotted B-75 Beast 18279 | -5/Factory | First assault squad dispatched 18296 | -5/Factory | Lost 3 allies 18463 | -5/Factory | Build established: Hauler-Executioner 18519 | -5/Factory | Scrapoids reinforcements arrived? 18570 | -5/Factory | P-70 Sage assimilated allied 05F23-D 18706 | -5/Factory | Fabricated Humpback? 18888 | -5/Factory | Entered Upper Caves 18888 | -5/Upper Caves | Accompanied by 4 allies 18890 | -5/Upper Caves | UFD Scientist delivered a prototype 18892 | -5/Upper Caves | Found Prototype Protection 18953 | -5/Upper Caves | Attached CPS modules to 05F24-D 18955 | -5/Upper Caves | Attached CPS modules to 05F22-D 19494 | -5/Upper Caves | Learned location of Warlord (-4) 19565 | -5/Upper Caves | Discovered new exit (range 12) 19581 | -5/Upper Caves | Identified exit to Upper Caves 20021 | -5/Upper Caves | Learned Factory terminal intel 20617 | -5/Upper Caves | Entered another Upper Caves area 20617 | -5/Upper Caves | Accompanied by 3 allies 20637 | -5/Upper Caves | Learned Factory garrison access intel 20747 | -5/Upper Caves | Discovered new exit (range 23) 20999 | -5/Upper Caves | Attracted the attention of an 0b10 base 21038 | -5/Upper Caves | Found Scrap Suit 21077 | -5/Upper Caves | Found Corrupted Scrap Suit 21301 | -5/Upper Caves | Attracted the attention of an 0b10 checkpoint 21325 | -5/Upper Caves | Found Scrap Suit 21345 | -5/Upper Caves | Build established: Hauler-Scrapper 21610 | -5/Upper Caves | Attacked by a delusional Derelict stockpiling parts 22090 | -5/Upper Caves | Spotted B-75 Beast 22163 | -5/Upper Caves | Discovered new exit (range 4) 22168 | -5/Upper Caves | Identified exit to Zhirov 22188 | -5/Upper Caves | Learned 4 Factory zone layouts 22513 | -5/Upper Caves | Entered Zhirov 22513 | -5/Zhirov | Discovered new exit (range 3) 22549 | -5/Zhirov | Met Zhirov 22593 | -5/Zhirov | Learned location of Command (-1) 22593 | -5/Zhirov | Learned location of Testing (-3) 22619 | -5/Zhirov | Zhirov requested help retrieving the SGEMP Prototype 22650 | -5/Zhirov | Found Alien Artifact 22650 | -5/Zhirov | Identified Integrated Dissipator 22650 | -5/Zhirov | Installed Integrated Dissipator, increased core heat dissipation (+20) 22677 | -5/Zhirov | Found Alien Artifact 22960 | -5/Zhirov | Identified exit to Proximity Caves 22962 | -5/Zhirov | Entered Proximity Caves 23457 | -4/Proximity Caves | Learned Research security intel 24471 | -4/Proximity Caves | Learned Research emergency access door positions 24590 | -4/Proximity Caves | Discovered new exit (range 10) 24609 | -4/Proximity Caves | Identified exit to Factory 24661 | -4/Proximity Caves | Spotted B-86 Titan 24899 | -4/Proximity Caves | System corruption reached 10% 24906 | -4/Proximity Caves | Entered Factory 24906 | -4/Factory | Evolved 2 slots: Propulsion x2 24908 | -4/Factory | Loaded intel: 26 terminal locations 24909 | -4/Factory | Loaded intel: 4 garrison access locations 24937 | -4/Factory | Watched by a mysterious "MATRIX" hacker 24952 | -4/Factory | Identified exit to Upper Caves 25103 | -4/Factory | Garrison activated, responded to threat 25135 | -4/Factory | Tech Extrapolator generated special schematic: Machine Rigger 25230 | -4/Factory | Spotted B-86 Titan 25566 | -4/Factory | Repaired Humpback 26132 | -4/Factory | Discovered new exit (range 17) 26221 | -4/Factory | Repaired Humpback? 26405 | -4/Factory | Spotted B-86 Titan 26425 | -4/Factory | P-70 Sage assimilated allied B-86 Titan 26430 | -4/Factory | Destroyed B-86 Titan 26499 | -4/Factory | Tech Extrapolator generated special schematic: Wartreads 26656 | -4/Factory | First assault squad dispatched 26661 | -4/Factory | Fabricated Deep Structural Scanner? 26713 | -4/Factory | Sucked down chute 26713 | -4/Factory | Entered Waste 26713 | -4/Waste | The area was eerily silent 26799 | -4/Waste | Found Prototype Processor 26908 | -4/Waste | Discovered new exit (range 15) 27541 | -4/Waste | Identified exit to Factory 27715 | -4/Waste | Entered Factory 27830 | -4/Factory | Repaired Broken Rnf. Quantum Reactor 27900 | -4/Factory | Discovered new exit (range 10) 27905 | -4/Factory | Found Exp. Signal Interpreter 27924 | -4/Factory | Identified exit to Research 28289 | -4/Factory | Repaired Humpback 29246 | -4/Factory | Fabricated Adv. System Restoration Module? 29465 | -4/Factory | First assault squad dispatched 29935 | -4/Factory | Scrapoids reinforcements arrived? 29947 | -4/Factory | Entered Upper Caves 29947 | -4/Upper Caves | Accompanied by 5 allies 30180 | -4/Upper Caves | Found Scrap Suit 30183 | -4/Upper Caves | Lost 5 allies 30189 | -4/Upper Caves | Found Scrap Suit 30281 | -4/Upper Caves | Identified Exp. Armor Integrity Analyzer 30288 | -4/Upper Caves | Found Scrap Suit 30332 | -4/Upper Caves | Learned Armory terminal intel 30333 | -4/Upper Caves | A Commander dispatched an escort 30510 | -4/Upper Caves | Attracted the attention of an 0b10 checkpoint 30774 | -4/Upper Caves | Learned Research garrison access intel 30902 | -4/Upper Caves | Tech Extrapolator generated special schematic: Heat Bomb Trap 31290 | -4/Upper Caves | Discovered new exit (range 5) 31301 | -4/Upper Caves | Identified exit to Upper Caves 31441 | -4/Upper Caves | Entered another Upper Caves area 31441 | -4/Upper Caves | Accompanied by 7 allies 31442 | -4/Upper Caves | Commander's escort returned to base 31442 | -4/Upper Caves | Commander's escort returned to base 31442 | -4/Upper Caves | Discovered exit to Research (range 13) 31815 | -4/Upper Caves | Encountered a Warlord checkpoint 32025 | -4/Upper Caves | Learned location of 1 exit from Research 32154 | -4/Upper Caves | Found Alien Artifact 32185 | -4/Upper Caves | Discovered new exit (range 13) 32219 | -4/Upper Caves | Identified exit to Warlord 32414 | -4/Upper Caves | Spotted B-86 Titan 32486 | -4/Upper Caves | Destroyed B-86 Titan 32748 | -4/Upper Caves | Entered Warlord 32748 | -4/Warlord | Accompanied by 4 allies 32777 | -4/Warlord | Found Corrupted Scrap Suit 32813 | -4/Warlord | System corruption cleaned by Quarantine Array 33346 | -4/Warlord | Found Prototype Reactor 33353 | -4/Warlord | Found Prototype Device 33353 | -4/Warlord | Identified Exp. Focal Shield 33356 | -4/Warlord | Found Prototype Processor 33356 | -4/Warlord | Identified Exp. Target Analyzer 33545 | -4/Warlord | Warlord's base attacked by MAIN.C 33615 | -4/Warlord | Found Prototype Energy Gun 33615 | -4/Warlord | Identified Vortex Rail 33622 | -4/Warlord | Found Prototype Energy Cannon 33622 | -4/Warlord | Identified Vortex Cannon 33638 | -4/Warlord | Found Prototype Launcher 33895 | -4/Warlord | Warlord forces counterattacked 33904 | -4/Warlord | Lost 10 allies 33952 | -4/Warlord | Spotted Executioner 34029 | -4/Warlord | Rebuked by Warlord 34082 | -4/Warlord | Lost 23 allies 34220 | -4/Warlord | Warlord base infiltrated, sounded retreat 34221 | -4/Warlord | Enhanced Grunt warped into view 34221 | -4/Warlord | Enhanced Grunt warped into view 34221 | -4/Warlord | Enhanced Grunt warped into view 34221 | -4/Warlord | Enhanced Demolisher warped into view 34221 | -4/Warlord | Enhanced Demolisher warped into view 34221 | -4/Warlord | Enhanced Demolisher warped into view 34225 | -4/Warlord | Spotted Striker 34306 | -4/Warlord | Spotted Striker 34307 | -4/Warlord | Spotted Executioner 34310 | -4/Warlord | Spotted Executioner 34312 | -4/Warlord | Destroyed Executioner 34324 | -4/Warlord | Destroyed Executioner 34331 | -4/Warlord | P-80 Master assimilated allied E2-T1K(K) 34332 | -4/Warlord | Spotted E2-T1K(K) 34373 | -4/Warlord | Lost 20 allies 34384 | -4/Warlord | Spotted Striker 34409 | -4/Warlord | Destroyed Striker 34429 | -4/Warlord | Lost 5 allies 34450 | -4/Warlord | Destroyed 7 combat bots 34456 | -4/Warlord | Spotted Striker 34472 | -4/Warlord | Destroyed Striker 34679 | -4/Warlord | Build established: Scavenger-Scrapper 34683 | -4/Warlord | Spotted B-86 Titan 34698 | -4/Warlord | Destroyed B-86 Titan 34899 | -4/Warlord | Spotted Striker 34916 | -4/Warlord | Destroyed Striker 34946 | -4/Warlord | Destroyed 11 combat bots 34953 | -4/Warlord | Spotted Executioner 34954 | -4/Warlord | Spotted Executioner 34960 | -4/Warlord | Spotted Executioner 34966 | -4/Warlord | Identified Vortex Catalyst Activator 34966 | -4/Warlord | Spotted Executioner 34968 | -4/Warlord | Destroyed Executioner 34968 | -4/Warlord | Destroyed Executioner 34968 | -4/Warlord | Destroyed Executioner 34970 | -4/Warlord | Core integrity fell below 50% 34972 | -4/Warlord | Destroyed Executioner 34991 | -4/Warlord | Lost 3 parts (1p1n1w) 35003 | -4/Warlord | Destroyed 19 combat bots 35022 | -4/Warlord | Found Corrupted Scrap Suit 35025 | -4/Warlord | System corruption reached 10% 35052 | -4/Warlord | Discovered new exit (range 8) 35052 | -4/Warlord | Spotted Striker 35057 | -4/Warlord | Identified exit to Proximity Caves 35058 | -4/Warlord | Entered Proximity Caves 35472 | -3/Proximity Caves | Discovered exit to Research (range 15) 35488 | -3/Proximity Caves | Entered Research 35488 | -3/Research | Evolved 2 slots: Power x1, Utility x1 35489 | -3/Research | Identified exit to Research 35492 | -3/Research | Loaded intel: 22 terminal locations 35493 | -3/Research | Loaded intel: 4 garrison access locations 35688 | -3/Research | Revision forces began assault on 0b10 35745 | -3/Research | Found Prototype Device 35746 | -3/Research | Identified Exp. Shield Generator 35792 | -3/Research | Scrapoids reinforcements arrived? 35834 | -3/Research | Met up with Revision 17++ 35876 | -3/Research | Discovered exit to Research (range 10) 35894 | -3/Research | Found Scrap Suit 36031 | -3/Research | Found Scrap Suit 36069 | -3/Research | Lost 5 allies 36128 | -3/Research | Found Prototype Device 36128 | -3/Research | Identified Exp. ECM Suite 36188 | -3/Research | Research terminal network offline 36262 | -3/Research | Spotted Striker 36266 | -3/Research | Destroyed Striker 36286 | -3/Research | Lost 5 allies 36430 | -3/Research | Spotted Striker 36473 | -3/Research | Destroyed Striker 36515 | -3/Research | Lost 6 allies 36599 | -3/Research | Repaired Humpback 36902 | -3/Research | Discovered new exit (range 15) 36951 | -3/Research | Identified exit to Armory 36978 | -3/Research | Discovered new exit (range 9) 36991 | -3/Research | Identified exit to Testing 36997 | -3/Research | Central database locked down 36997 | -3/Research | Identified Dimensional Node Initializer 36997 | -3/Research | Identified Transdimensional Reconstructor 37158 | -3/Research | Entered Testing 37191 | -3/Testing | Protovariant out of control (PG-FNP22ZTQW1) 37191 | -3/Testing | Unleashed a protovariant (PG-FNP22ZTQW1) 37195 | -3/Testing | Found Spectral Analyzer 37258 | -3/Testing | Protovariant out of control (PP-953K83DR2U) 37258 | -3/Testing | Unleashed a protovariant (PP-953K83DR2U) 37300 | -3/Testing | Spotted Investigator 37300 | -3/Testing | Warped through subspace 37328 | -3/Testing | Spotted Striker 37328 | -3/Testing | Spotted Striker 37341 | -3/Testing | Build established: Hauler-Scrapper 37506 | -3/Testing | Discovered exit to Research (range 15) 37519 | -3/Testing | Central database locked down 37549 | -3/Testing | Found Prototype Ballistic Cannon 37780 | -3/Testing | Found Prototype Device 37780 | -3/Testing | Identified Exp. Hardlight Generator 38124 | -3/Testing | Found Prototype Device 38124 | -3/Testing | Identified Exp. EM Disruption Field 38447 | -3/Testing | Identified Vortex Chain Reactor 38894 | -3/Testing | Found Prototype Ballistic Cannon 39158 | -3/Testing | First assault squad dispatched 39239 | -3/Testing | Found Prototype Hackware 39290 | -3/Testing | Entered Research 39290 | -2/Research | Evolved 2 slots: Utility x1, Weapon x1 39356 | -2/Research | Identified System Mapper 39524 | -2/Research | Spotted B-90 Cyclops 39953 | -2/Research | Discovered new exit (range 11) 39972 | -2/Research | Found Prototype Launcher 39982 | -2/Research | Identified exit to Quarantine 39985 | -2/Research | Identified Hellfire Missile Launcher 40012 | -2/Research | Entered Quarantine 40114 | -2/Quarantine | Cryocooling Duct disabled 40116 | -2/Quarantine | Cryocooling Duct disabled 40129 | -2/Quarantine | Ambient heat levels rising (+20) 40129 | -2/Quarantine | Non-combat units ordered to evacuate 40131 | -2/Quarantine | Ambient heat levels rising (+20) 40131 | -2/Quarantine | Combat units ordered to evacuate 40147 | -2/Quarantine | Build established: Scavenger-Scrapper 40231 | -2/Quarantine | Quarantine Guard activated 40409 | -2/Quarantine | Identified Perforator 40468 | -2/Quarantine | Destroyed Quarantine Guard 40605 | -2/Quarantine | Spotted Quarantine Guard 40654 | -2/Quarantine | Destroyed Quarantine Guard 40687 | -2/Quarantine | Spotted Quarantine Guard 40688 | -2/Quarantine | Destroyed Quarantine Guard 40702 | -2/Quarantine | Build established: Hauler-Scrapper 40706 | -2/Quarantine | Discovered new exit (range 23) 40706 | -2/Quarantine | Spotted Quarantine Guard 40714 | -2/Quarantine | Destroyed Quarantine Guard 40830 | -2/Quarantine | Identified exit to Access 40948 | -2/Quarantine | Destroyed Quarantine Guard 40985 | -2/Quarantine | Spotted Quarantine Guard 40999 | -2/Quarantine | Destroyed Quarantine Guard 41046 | -2/Quarantine | Spotted Quarantine Guard 41052 | -2/Quarantine | Destroyed Quarantine Guard 41914 | -2/Quarantine | Repaired Humpback 41928 | -2/Quarantine | Repaired Humpback 41944 | -2/Quarantine | Repaired Humpback 42012 | -2/Quarantine | Found Unknown Protection 42012 | -2/Quarantine | Identified Imp. Powered Armor 42019 | -2/Quarantine | Found Imp. Powered Armor 42022 | -2/Quarantine | Found Imp. Powered Armor 42084 | -2/Quarantine | Found Alien Artifact 42085 | -2/Quarantine | Identified Core Reset Matrix 42085 | -2/Quarantine | Used Core Reset Matrix 42089 | -2/Quarantine | Detected hypermatrix surge 42089 | -2/Quarantine | Sensed 7 artifacts in vicinity 42159 | -2/Quarantine | Discovered exit to Access (range 25) 42311 | -2/Quarantine | Found Prototype Protection 42311 | -2/Quarantine | Identified Centrium Heavy Armor Plating 42806 | -2/Quarantine | Found Phase Armor 43553 | -2/Quarantine | Met incapacitated Sigix Warrior 43553 | -2/Quarantine | Lockdown squad dispatched 43558 | -2/Quarantine | Acquired the access code to the Sigix quarantine chamber 43561 | -2/Quarantine | Unlocked Sigix quarantine chamber 43566 | -2/Quarantine | Found Sigix Containment Pod 43597 | -2/Quarantine | Spotted Lightning 43647 | -2/Quarantine | Destroyed Lightning 43649 | -2/Quarantine | Spotted Lightning 43649 | -2/Quarantine | Destroyed Lightning 43651 | -2/Quarantine | Destroyed Lightning 43723 | -2/Quarantine | Found Prototype Device 43723 | -2/Quarantine | Identified Exp. EM Shield 43730 | -2/Quarantine | Found Prototype Processor 43730 | -2/Quarantine | Identified Exp. Targeting Computer 43744 | -2/Quarantine | Found Prototype Energy Cannon 43744 | -2/Quarantine | Identified EMDS 43749 | -2/Quarantine | Found EMDS 43822 | -2/Quarantine | Identified Omega Cannon 44020 | -2/Quarantine | Found Core Stripper 44211 | -2/Quarantine | Spotted Fortress 44366 | -2/Quarantine | Destroyed Fortress 44403 | -2/Quarantine | Found Prototype Device 44403 | -2/Quarantine | Identified Exp. Force Field 44408 | -2/Quarantine | Found Vortex Chain Reactor 44422 | -2/Quarantine | Found Prototype Device 44422 | -2/Quarantine | Identified Thermal Barrier 44689 | -2/Quarantine | System corruption reached 10% 44758 | -2/Quarantine | Identified Enh. Scrap Shield 45013 | -2/Quarantine | Found Subatomic Replicator 45567 | -2/Quarantine | Used Subatomic Replicator to replicate Perforator 45701 | -2/Quarantine | Discovered new exit (range 7) 45701 | -2/Quarantine | Discovered new exit (range 9) 45701 | -2/Quarantine | Spotted Quarantine Guard 45701 | -2/Quarantine | Spotted Quarantine Guard 45703 | -2/Quarantine | Destroyed Quarantine Guard 45709 | -2/Quarantine | Destroyed Quarantine Guard 45743 | -2/Quarantine | Entered Section 7 45744 | -2/Section 7 | Detected hypermatrix surge 45744 | -2/Section 7 | Sensed 19 artifacts in vicinity 45775 | -2/Section 7 | Targeted by mysterious "MATRIX" hacker 45844 | -2/Section 7 | Found Prototype Device 45844 | -2/Section 7 | Identified Exp. Transmission Jammer 45972 | -2/Section 7 | Spotted S7 Guard 46017 | -2/Section 7 | Destroyed S7 Guard 46038 | -2/Section 7 | Found Corrupted Prototype Protection 46051 | -2/Section 7 | Found Integrated Thermoelectric Network 46051 | -2/Section 7 | Installed Integrated Thermoelectric Network, gained heat-energy exchange potential 46173 | -2/Section 7 | Spotted B-90 Cyclops 46493 | -2/Section 7 | First assault squad dispatched 46565 | -2/Section 7 | Destroyed 12 combat bots 46606 | -2/Section 7 | Repaired Imp. Heavy Siege Treads 46642 | -2/Section 7 | Found Integrity Redistributor 46662 | -2/Section 7 | Found Integrated Mediator 46662 | -2/Section 7 | Installed Integrated Mediator, increased core attachment efficiency 46736 | -2/Section 7 | Spotted Executioner 46757 | -2/Section 7 | Spotted Executioner 46757 | -2/Section 7 | Destroyed Executioner 46760 | -2/Section 7 | Destroyed Executioner 46804 | -2/Section 7 | Found Prototype Processor 46807 | -2/Section 7 | Identified Exp. Core Analyzer 46939 | -2/Section 7 | Found Transdimensional Reconstructor 47041 | -2/Section 7 | Spotted B-99 Colossus 47109 | -2/Section 7 | Found Core Expander 47109 | -2/Section 7 | Installed Core Expander, added new Utility slot 47160 | -2/Section 7 | Found LRC Inertial Stabilizer 47160 | -2/Section 7 | Installed LRC Inertial Stabilizer, increased mass support (+10) 47168 | -2/Section 7 | Found LRC Matter Compressor 47168 | -2/Section 7 | Installed LRC Matter Compressor, increased matter storage capacity (+125) 47170 | -2/Section 7 | Found LRC Insulator 47170 | -2/Section 7 | Installed LRC Insulator, 1 resistance modified: EM +25% 47364 | -2/Section 7 | Destroyed B-99 Colossus 47434 | -2/Section 7 | Found Unknown Protection 47434 | -2/Section 7 | Identified Hvy. Insulated Plating 47527 | -2/Section 7 | Activated Sigix Exoskeleton 47527 | -2/Section 7 | Received instructions from Sigix Warrior 47666 | -2/Section 7 | Build established: Alien-Tank 47753 | -2/Section 7 | Allies destroyed Striker 47770 | -2/Section 7 | Destroyed 7 combat bots 47847 | -2/Section 7 | Scanned by Researcher 47847 | -2/Section 7 | Destroyed Investigator 47848 | -2/Section 7 | Intercept squad dispatched 47872 | -2/Section 7 | Spotted Tracker 47873 | -2/Section 7 | Spotted Tracker 47874 | -2/Section 7 | Destroyed Tracker 47880 | -2/Section 7 | Allies destroyed Tracker 47897 | -2/Section 7 | Destroyed Executioner 47900 | -2/Section 7 | Destroyed Executioner 47905 | -2/Section 7 | Spotted Combat Programmer 47906 | -2/Section 7 | Spotted Combat Programmer 47909 | -2/Section 7 | Allies destroyed Combat Programmer 47916 | -2/Section 7 | Destroyed Striker 47999 | -2/Section 7 | Destroyed 40 combat bots 48067 | -2/Section 7 | Sterilization system engaged 48067 | -2/Section 7 | Non-combat units ordered to evacuate 48109 | -2/Section 7 | Sigix Exoskeleton integrity reduced to 80% 48133 | -2/Section 7 | Destroyed 7 combat bots 48136 | -2/Section 7 | Spotted Executioner 48142 | -2/Section 7 | Allies destroyed Executioner 48149 | -2/Section 7 | Spotted Executioner 48149 | -2/Section 7 | Spotted Executioner 48149 | -2/Section 7 | Spotted Executioner 48150 | -2/Section 7 | Spotted Striker 48151 | -2/Section 7 | Destroyed Executioner 48152 | -2/Section 7 | Spotted Executioner 48152 | -2/Section 7 | Spotted Executioner 48154 | -2/Section 7 | Destroyed Striker 48156 | -2/Section 7 | Spotted Striker 48157 | -2/Section 7 | Destroyed Executioner 48160 | -2/Section 7 | Destroyed Executioner 48163 | -2/Section 7 | Destroyed Executioner 48167 | -2/Section 7 | Combat units ordered to evacuate 48169 | -2/Section 7 | Destroyed Striker 48169 | -2/Section 7 | Destroyed Executioner 48176 | -2/Section 7 | Spotted Striker 48179 | -2/Section 7 | Spotted Striker 48184 | -2/Section 7 | Destroyed Striker 48191 | -2/Section 7 | Allies destroyed Striker 48204 | -2/Section 7 | Found Exp. Targeting Computer 48205 | -2/Section 7 | Destroyed 18 combat bots 48207 | -2/Section 7 | Found Prototype Device 48207 | -2/Section 7 | Identified Adv. Kinecellerator 48367 | -2/Section 7 | Ambient heat levels rising (+10) 48517 | -2/Section 7 | Ambient heat levels rising (+10) 48630 | -2/Section 7 | Used Integrity Redistributor, redistributed integrity from core (-210) 48633 | -2/Section 7 | Entered Access 48633 | -1/Access | Accompanied by 1 ally (Sigix Warrior) 48633 | -1/Access | Evolved 2 slots: Utility x2 48641 | -1/Access | Energy Cycler disabled 48681 | -1/Access | Destroyed 8 combat bots 48757 | -1/Access | Sigix Exoskeleton integrity reduced to 60% 48815 | -1/Access | Destroyed 19 combat bots 48824 | -1/Access | Destroyed Executioner 48831 | -1/Access | Destroyed Investigator 48852 | -1/Access | Destroyed 7 combat bots 48865 | -1/Access | Spotted Executioner 48876 | -1/Access | Destroyed Executioner 48928 | -1/Access | Destroyed 19 combat bots 48985 | -1/Access | Spotted Striker 48986 | -1/Access | Spotted Executioner 48987 | -1/Access | Spotted Striker 48993 | -1/Access | Destroyed Striker 48999 | -1/Access | Destroyed Striker 49009 | -1/Access | Sigix Exoskeleton integrity reduced to 40% 49023 | -1/Access | Destroyed 10 combat bots 49100 | -1/Access | Destroyed 15 combat bots 49102 | -1/Access | Found Exp. Targeting Computer 49126 | -1/Access | Spotted Investigator 49127 | -1/Access | Destroyed Investigator 49219 | -1/Access | Destroyed 9 combat bots 49220 | -1/Access | Spotted Striker 49220 | -1/Access | Spotted Striker 49222 | -1/Access | Destroyed Striker 49227 | -1/Access | Destroyed Striker 49230 | -1/Access | Sigix Exoskeleton integrity reduced to 20% 49234 | -1/Access | Spotted Executioner 49236 | -1/Access | Destroyed Executioner 49238 | -1/Access | Sterilization system engaged 49314 | -1/Access | Destroyed 24 combat bots 49321 | -1/Access | Spotted Striker 49321 | -1/Access | Spotted Executioner 49322 | -1/Access | Destroyed Executioner 49328 | -1/Access | Destroyed Striker 49347 | -1/Access | Spotted Executioner 49347 | -1/Access | Spotted Executioner 49349 | -1/Access | Destroyed 7 combat bots 49354 | -1/Access | Destroyed Executioner 49394 | -1/Access | Destroyed Executioner 49538 | -1/Access | Ambient heat levels rising (+10) 49578 | -1/Access | Destroyed 7 combat bots 49688 | -1/Access | Ambient heat levels rising (+10) 49719 | -1/Access | Spotted B-99 Colossus 49728 | -1/Access | Allies destroyed B-99 Colossus 49752 | -1/Access | Found Prototype Ballistic Gun 49838 | -1/Access | Ambient heat levels rising (+10) 49941 | -1/Access | Identified Multirail 49988 | -1/Access | Ambient heat levels rising (+10) 50138 | -1/Access | Ambient heat levels rising (+10) 50288 | -1/Access | Ambient heat levels rising (+10) 50342 | -1/Access | Spotted B-99 Colossus 50438 | -1/Access | Ambient heat levels rising (+10) 50533 | -1/Access | Discovered new exit (range 6) 50549 | *** | Destroyed 0b10! Last Messages --------------- Wheel melts. 50274_ Acquired 49 matter. 50278_ Acquired 54 matter. 50279_ Acquired 84 matter. 50288_ ALERT: Ambient heat levels +10. 50299_ Spectral Interrupter explodes. 50299_ Door malfunctions. 50348_ Synergy achieved. Target locked: B-99 Colossus. 50351_ Terminal disabled. Terminal melts. 50365_ Acquired 40 matter. Unknown Device melts. Seismic Detector melts. 50438_ ALERT: Ambient heat levels +10. 50457_ Longscan Aggregator disabled. Longscan Aggregator melts. 50533_ The Access Shell folds into the floor. 50533_ EXIT=FOUND [Achievement: Partners In Destruction] Map ----- +----------------------------------------------------+ | ?????????????????????????????????????????????????? | | ?????????????????????????????????????????????????? | | ?????????????????????????????????????????????????? | | ?????????????????????????????????????????????????? | | ????????????????????????????????????????????????? | | ????????????????????????????????????????????????? | | ????????????????????????????????????????????????? | | ?????????????????????????????????????????????????# | | ?????????????????????????????????????????????????# | | ?????????????????????????????????????????????????# | | ?????????????????????????????????????????????????# | | ?????????????????????????????????????????????????? | | ?????????????????????????????????????????????????? | | ?????????????????????????????????????????????????? | | ?????????????????????????????????????????????????? | | ????????????????????????????????????????????????? | | ????????????????????????????????????????????????? | | ????????????????####"""????"""####??????????????? | | ????????????????####"""????"""####??????????????? | | ????????????????####"""????"""####??????????????? | | ????????????????####""""""""""####??????????????? | | ????????????????#### ############# | | ????????????????#### ############# | | ????????????????#### ############## | | ????????????????#### "" #################### | | ????????????????#### "@X ###### ## | | ???????????????##### ###### ## | | ???????????????##### ###### ## | | ???????????????##### #####?? ## | | ??????????????? #### #####??? ## | | ??????????????? ### ####??? ??# | | ??????????????? ####"" #####???? ???# | | ??????????????? ####"" #####????! ???# | | ??????????????? ####"" #####????? ????# | | ????????? " ####T ###### ## | | ????????? ####"" ###### ## | | ????????? ####"" ###### ## | | ??????##############"" ############+####### | | ????? % | | ????? | | ?????#########+###########################+####### | | ????? #################### # | | ????? #################### # | | ????? " #################### # | | ???????????????????????????????????????? ????# | | ??????????????????????????????????????? ???# | | ??????????????????????????????????????? ???# | | ?????????????????????????????????????? ??# | | ?????????????????????????????????### ??# | | ?????????????????????????????????#### ?# | +----------------------------------------------------+ Best States ------------- Heat Dissipation 110 Coolant Potential 120 Energy Generation 55 Energy Capacity 700 Matter Stores 425 Matter Capacity 800 Sight Range 24 Robot Scan Range 20 Terrain Scan Density 10 ECM Strength 3 Jamming Range 16 Base Temperature (-) 200 Corruption Containment 12 Corruption Block 19 Armor Coverage 3200 Resistance: KI 30 Resistance: TH 50 Resistance: EM 100 Weapon Shielding 90 Weapon Cycling 25 Melee Speed Boost 20 Phase Shifting 20 Evasion (%) 50 Targeting Accuracy 12 Core Analysis 8 Recoil Reduction 2 Salvage Targeting 4 Offensive Hacking 34 Authchip Count 7 Trap Extractor Capacity 6 Item Schematics ----------------- None Robot Schematics ------------------ None Fabricated ------------ Humpback | x1 | -6/Factory Humpback | x1 | -5/Factory Deep Structural Scanner | x1 | -4/Factory | Authchip Adv. System Restoration Module | x2 | -4/Factory Repaired ---------- Humpback | 3% | -4/Factory Humpback | 7% | -4/Factory Rnf. Quantum Reactor | 7% | -4/Factory | Broken Humpback | 62% | -4/Factory Humpback | 12% | -3/Research Humpback | 6% | -2/Quarantine Humpback | 53% | -2/Quarantine Humpback | 37% | -2/Quarantine Imp. Heavy Siege Treads | 25% | -2/Section 7 Studied --------- None Alien Tech Used ----------------- Integrated Dissipator Transdimensional Reconstructor Core Reset Matrix Phase Armor Core Stripper Subatomic Replicator Integrated Thermoelectric Network Integrated Mediator Core Expander LRC Inertial Stabilizer LRC Matter Compressor LRC Insulator Integrity Redistributor Achievements -------------- Partners In Destruction Challenges ------------ None Game ------ Seed TeleporterSwordHarness Manual? 0 Play Time 07:31:36 Cumulative 1004.9 hours Start 2026.08.08 @ 21:26:45 End 2026.08.10 @ 01:39:16 Sessions 5 Manual Loads 0 Difficulty Rogue Special Mode None Game No. 274 Rogue 274 Adventurer 0 Explorer 0 Win Type 3 Total 44 Types 13/9/10/2/2/0/4/1/1/2 Lore% 97 Gallery% 91 Achievement% 87 Wizard Run 0 Options --------- Layout 1 ASCII 0 Keyboard 0 Movement Mouse Keybinds 0 Fullscreen 2 Font 32/SmallcapsGlow Map View 50x35 Zoom Use 0% Tactical HUD 1 Map Filters NONE Filters NONE Steam 1 RUN: 5ae33332-ab36-4bac-998c-e93e0ec07e84